Workbook

Sheet SolCotizacion
B1: Solicitud de Cotización Acuerdo Marco Microsoft 2G
B3: Versión: 52 | C3: 2019-10-11
B4: Información de la Entidad Compradora
B6: Nombre de la Entidad | E6: DIRECCIÓN NACIONAL DE DERECHO DE AUTOR | K6: NIT | M6: 800.185.929-2
B8: Dirección de la Entidad | E8: CALLE 28 # 13 A 15 PISO 17 | K8: Correo de contacto | M8: compras@derechodeautor.gov.co
B10: Municipio | E10: BOGOTÁ | K10: Teléfono de contacto | M10: 3418177 EXT 137
B12: Nombre funcionario Comprador | E12: SANDRA LUCÍA RODRÍGUEZ BOHÓRQUEZ
B16: Solicitud de Cotización
B18: Categoría | E18: Categoría 2 | I18: Valor TRM | J18: 3431.46 | M18: Fecha de lanzamiento del evento de cotización | N18: 2019-10-28
I19: Escribir hasta dos cifras decimales. Tenga en cuenta que el simulador aproxima al entero más cercano.
B20: Productos
A22: *Libros, revistas, cartillas y/o catálogo Segmento 1. | B22: =E18 -> Categoría 2 | C22: =VLOOKUP(B22,Categorias!$A:$B,2,0) -> Productividad Administración y análisis de datos (Open - CSP)
B24: Cantidad de filas:
B25: 1
B27: Item | C27: Código Catálogo | E27: Descripción del Producto | I27: Tipo | J27: Unidad | K27: Zona | L27: Asistencia | M27: Perfil | N27: Número de parte | O27: Forma de Pago | P27: cantidad
A28: =E28&L28 -> Office 365 E3N/A | B28: 1 | C28: 796b6b5f-613c-4e24-a17c-eba730d49c02 | E28: =VLOOKUP($C28&$E$18,Consolidado!$B:$U,9,0) -> Office 365 E3 | I28: =VLOOKUP($C28&$E$18,Consolidado!$B:$U,12,0) -> Producto | J28: =VLOOKUP($C28&$E$18,Consolidado!$B:$U,10,0) -> Unidad | K28: =VLOOKUP($C28&$E$18,Consolidado!$B:$U,13,0) -> N/A | L28: =VLOOKUP($C28&$E$18,Consolidado!$B:$U,14,0) -> N/A | M28: =VLOOKUP($C28&$E$18,Consolidado!$B:$U,15,0) -> N/A | N28: =VLOOKUP($C28&$E$18,Consolidado!$B:$U,16,0) -> 796b6b5f-613c-4e24-a17c-eba730d49c02 | O28: =VLOOKUP($C28&$E$18,Consolidado!$B:$U,17,0) -> Suscripción mensual con pago anual | P28: 180
A29: =E29&L29 -> Exchange Online (Plan 1)N/A | B29: 2 | C29: 195416c1-3447-423a-b37b-ee59a99a19c4 | E29: =VLOOKUP($C29&$E$18,Consolidado!$B:$U,9,0) -> Exchange Online (Plan 1) | I29: =VLOOKUP($C29&$E$18,Consolidado!$B:$U,12,0) -> Producto | J29: =VLOOKUP($C29&$E$18,Consolidado!$B:$U,10,0) -> Unidad | K29: =VLOOKUP($C29&$E$18,Consolidado!$B:$U,13,0) -> N/A | L29: =VLOOKUP($C29&$E$18,Consolidado!$B:$U,14,0) -> N/A | M29: =VLOOKUP($C29&$E$18,Consolidado!$B:$U,15,0) -> N/A | N29: =VLOOKUP($C29&$E$18,Consolidado!$B:$U,16,0) -> 195416c1-3447-423a-b37b-ee59a99a19c4 | O29: =VLOOKUP($C29&$E$18,Consolidado!$B:$U,17,0) -> Suscripción mensual con pago anual | P29: 120
A30: =E30&L30 -> Office 365 Business PremiumN/A | B30: 3 | C30: 031c9e47-4802-4248-838e-778fb1d2cc05 | E30: =VLOOKUP($C30&$E$18,Consolidado!$B:$U,9,0) -> Office 365 Business Premium | I30: =VLOOKUP($C30&$E$18,Consolidado!$B:$U,12,0) -> Producto | J30: =VLOOKUP($C30&$E$18,Consolidado!$B:$U,10,0) -> Unidad | K30: =VLOOKUP($C30&$E$18,Consolidado!$B:$U,13,0) -> N/A | L30: =VLOOKUP($C30&$E$18,Consolidado!$B:$U,14,0) -> N/A | M30: =VLOOKUP($C30&$E$18,Consolidado!$B:$U,15,0) -> N/A | N30: =VLOOKUP($C30&$E$18,Consolidado!$B:$U,16,0) -> 031c9e47-4802-4248-838e-778fb1d2cc05 | O30: =VLOOKUP($C30&$E$18,Consolidado!$B:$U,17,0) -> Suscripción mensual con pago anual | P30: 600
B31: 1. Si requiere agregue o elimine fila
B34: Gravámenes adicionales*
B35: Si los hay, indique los gravámenes adicionales a los que está sujeta la Orden de Compra. Son gravámenes adicionales por ejemplo; estampillas y demás impuestos territoriales. Los impuestos como ICA y retención en la fuente NO son gravámenes adicionales.
B36: Gravámenes adicionales (estampillas)
B37: No | C37: Descripción | H37: Porcentaje
B38: 1
F39: Total porcentaje: | H39: =SUM(H38:H38) -> 0
D40: Filas a agregar o eliminar Gravámenes:
D41: 1

Sheet Anexo
B1: Con el objetivo de complementar el entendimiento sobre la solicitud de Productos y Servicios Microsoft , por favor diligencie la totalidad de la información que se pide a continuación.
B3: Tenga en cuenta que esta información es de utilidad para que el Proveedor pueda cotizar de la manera más precisa posible los Productos y Servicios Microsoft solicitados, por lo cual la exactitud y completitud es muy importante.
A4: No | B4: Requerimiento adicional | C4: Descripción | D4: INFORMACION SUMINISTRADA POR LA ENTIDAD COMPRADORA
B5: Nombre y Nit de la Entidad Estatal a la cual se le entregará la titularidad de las licencias adquiridas.
A6: 1 | B6: Lugar de entrega de los Productos y Servicios Microsoft. (Especificar dirección y ciudad de entrega).
A7: 2 | B7: Datos Contacto de entrega (Especificar nombre, teléfono y correo electrónico).
A8: 3 | B8: Funciones a realizar el soporte en sitio.
A9: 4 | B9: Área de conocimiento de las personas que prestan el servicio de soporte técnico proactivo.
A10: 5 | B10: Área de conocimiento de las personas que prestan el servicio de soporte técnico reactivo.
A11: 6 | B11: Mecanismo de solicitud del soporte reactivo.
A12: 7 | B12: Especificar que información o que bases de datos se van a migrar. Aplica en el caso que la Entidad Compradora solicite el servicio de migración de información o de bases de datos.
A13: 8 | B13: Actividades del gerente de cuenta.
A14: 9 | B14: Indique número de personas que requieren de capacitación. En caso que la Entidad Compradora solicite el servicio de capacitación usuario final o usuario técnico.
A15: 10 | B15: Especificar características de configuración y descripción de las tareas a realizar. En caso que la Entidad Compradora solicite el servicio de configuración y parametrización.
A16: 12 | B16: Establecer las políticas de respaldo de información.

Sheet ResumenCotizacion
B1: Solicitud de Cotización Acuerdo Marco Microsoft 2G
B3: =SolCotizacion!B3 -> Versión: 52 | C3: =SolCotizacion!C3 -> 2019-10-11
B4: Información de la Entidad Compradora
B6: Nombre de la Entidad | E6: DIRECCIÓN NACIONAL DE DERECHO DE AUTOR | K6: NIT | M6: 800.185.929-2
B8: Dirección de la Entidad | E8: CALLE 28 # 13 A 15 PISO 17 | K8: Correo de contacto | M8: compras@derechodeautor.gov.co
B10: Municipio | E10: BOGOTÁ | K10: Teléfono de contacto | M10: 3418177 EXT 137
B12: Nombre funcionario Comprador | E12: SANDRA LUCÍA RODRÍGUEZ BOHÓRQUEZ
B16: Solicitud de Cotización
B18: Categoría | E18: Categoría 2 | I18: Valor TRM | J18: =SolCotizacion!J18 -> 3431.46 | M18: Fecha | N18: =SolCotizacion!N18 -> 2019-10-28
B20: Productos
A22: *Libros, revistas, cartillas y/o catálogo Segmento 1. | B22: =SolCotizacion!B22 -> Categoría 2 | C22: =SolCotizacion!C22 -> Productividad Administración y análisis de datos (Open - CSP)
B24: Cantidad de filas:
B25: 1
B27: Item | C27: Código Catálogo | E27: Descripción del Producto | I27: Tipo | J27: Unidad | K27: Zona | L27: Asistencia | M27: Perfil | N27: Número de parte | O27: Forma de Pago | P27: cantidad | Q27: Precio Unitario | R27: Precio Unitario + Gravamen | S27: Subtotal | T27: IVA | U27: Precio Total
A28: Office 365 E3N/A | B28: 1 | C28: 796b6b5f-613c-4e24-a17c-eba730d49c02 | E28: Office 365 E3 | I28: Producto | J28: Unidad | K28: N/A | L28: N/A | M28: N/A | N28: 796b6b5f-613c-4e24-a17c-eba730d49c02 | O28: Suscripción mensual con pago anual | P28: 180 | Q28: =VLOOKUP("Dell Colombia INC"&$E$18&$C28,temp!$A:$Y,19,0)*$J$18 -> 61620.0998 | R28: =ROUND(Q28/(1-(VLOOKUP("Total porcentaje:",$F:$H,3))),2) -> 61620.1 | S28: =ROUND(P28*R28,2) -> 11091618 | T28: =ROUND(S28*IF(VLOOKUP("Dell Colombia INC"&$E$18&$C28,Consolidado!$A:$U,21,0)=1,19%,0),2) -> 0 | U28: =S28+T28 -> 11091618
A29: Exchange Online (Plan 1)N/A | B29: 2 | C29: 195416c1-3447-423a-b37b-ee59a99a19c4 | E29: Exchange Online (Plan 1) | I29: Producto | J29: Unidad | K29: N/A | L29: N/A | M29: N/A | N29: 195416c1-3447-423a-b37b-ee59a99a19c4 | O29: Suscripción mensual con pago anual | P29: 120 | Q29: =VLOOKUP("Dell Colombia INC"&$E$18&$C29,temp!$A:$Y,19,0)*$J$18 -> 12993.22329 | R29: =ROUND(Q29/(1-(VLOOKUP("Total porcentaje:",$F:$H,3))),2) -> 12993.22 | S29: =ROUND(P29*R29,2) -> 1559186.4 | T29: =ROUND(S29*IF(VLOOKUP("Dell Colombia INC"&$E$18&$C29,Consolidado!$A:$U,21,0)=1,19%,0),2) -> 0 | U29: =S29+T29 -> 1559186.4
A30: Office 365 Business PremiumN/A | B30: 3 | C30: 031c9e47-4802-4248-838e-778fb1d2cc05 | E30: Office 365 Business Premium | I30: Producto | J30: Unidad | K30: N/A | L30: N/A | M30: N/A | N30: 031c9e47-4802-4248-838e-778fb1d2cc05 | O30: Suscripción mensual con pago anual | P30: 600 | Q30: =VLOOKUP("Dell Colombia INC"&$E$18&$C30,temp!$A:$Y,19,0)*$J$18 -> 40604.12303 | R30: =ROUND(Q30/(1-(VLOOKUP("Total porcentaje:",$F:$H,3))),2) -> 40604.12 | S30: =ROUND(P30*R30,2) -> 24362472 | T30: =ROUND(S30*IF(VLOOKUP("Dell Colombia INC"&$E$18&$C30,Consolidado!$A:$U,21,0)=1,19%,0),2) -> 0 | U30: =S30+T30 -> 24362472
B31: 1. Si requiere agregue o elimine fila | T31: Valor Total | U31: =ROUND(SUM($U$28:$U$30),2) -> 37013276.4
B34: Gravámenes adicionales* | S34: Servicios Azure
B35: Si los hay, indique los gravámenes adicionales a los que está sujeta la Orden de Compra. Son gravámenes adicionales por ejemplo; estampillas y demás impuestos territoriales. Los impuestos como ICA y retención en la fuente NO son gravámenes adicionales. | S35: Subtotal | T35: IVA | U35: Precio Total
B36: Gravámenes adicionales (estampillas) | S36: =SUMIF($O$28:$O$30,"Servicio Azure",$S$28:$S$30) -> 0 | T36: =SUMIF($O$28:$O$30,"Servicio Azure",$T$28:$T$30) -> 0 | U36: =S36+T36 -> 0
B37: No | C37: Descripción | H37: Porcentaje
B38: 1
F39: Total porcentaje: | H39: =SUM(H38:H38) -> 0
D40: Filas a agregar o eliminar Gravámenes:
D41: 1

Sheet Cotizacion
B1: Solicitud de Cotización Acuerdo Marco Microsoft 2G
B3: =SolCotizacion!B3 -> Versión: 52 | C3: =SolCotizacion!C3 -> 2019-10-11
B4: Información de la Entidad Compradora
B6: Nombre de la Entidad | E6: DIRECCIÓN NACIONAL DE DERECHO DE AUTOR | K6: NIT | M6: 800.185.929-2
B8: Dirección de la Entidad | E8: CALLE 28 # 13 A 15 PISO 17 | K8: Correo de contacto | M8: compras@derechodeautor.gov.co
B10: Municipio | E10: BOGOTÁ | K10: Teléfono de contacto | M10: 3418177 EXT 137
B12: Nombre funcionario Comprador | E12: SANDRA LUCÍA RODRÍGUEZ BOHÓRQUEZ
B16: Solicitud de Cotización
B18: Categoría | E18: Categoría 2 | I18: Valor TRM | J18: =SolCotizacion!J18 -> 3431.46 | M18: Fecha | N18: =SolCotizacion!N18 -> 2019-10-28
B20: Productos
A22: *Libros, revistas, cartillas y/o catálogo Segmento 1. | B22: =SolCotizacion!B22 -> Categoría 2 | C22: =SolCotizacion!C22 -> Productividad Administración y análisis de datos (Open - CSP)
B24: Cantidad de filas:
B25: 1 | L25: Proveedor
B27: Item | C27: Código Catálogo | E27: Descripción del Producto | I27: Tipo | J27: Unidad | K27: Zona | L27: Asistencia | M27: Perfil | N27: Número de parte | O27: Forma de Pago | P27: cantidad | Q27: Precio Unitario | R27: Precio Unitario + Gravamen | S27: Descuento adicional | T27: Precio con Descuento | U27: Subtotal | V27: IVA | W27: Precio Total
A28: Office 365 E3N/A | B28: 1 | C28: 796b6b5f-613c-4e24-a17c-eba730d49c02 | E28: Office 365 E3 | I28: Producto | J28: Unidad | K28: N/A | L28: N/A | M28: N/A | N28: 796b6b5f-613c-4e24-a17c-eba730d49c02 | O28: Suscripción mensual con pago anual | P28: 180 | Q28: =VLOOKUP($N$25&$E$18&$C28,temp!$A:$Y,19,0)*$J$18 ->  | R28: =ROUND(Q28/(1-(VLOOKUP("Total porcentaje:",$F:$H,3))),2) ->  | T28: =ROUND(R28*(1-S28),2) ->  | U28: =ROUND(P28*T28,2) ->  | V28: =ROUND(U28*IF(VLOOKUP($N$25&$E$18&$C28,Consolidado!$A:$U,21,0)=1,19%,0),2) ->  | W28: =U28+V28 -> 
A29: Exchange Online (Plan 1)N/A | B29: 2 | C29: 195416c1-3447-423a-b37b-ee59a99a19c4 | E29: Exchange Online (Plan 1) | I29: Producto | J29: Unidad | K29: N/A | L29: N/A | M29: N/A | N29: 195416c1-3447-423a-b37b-ee59a99a19c4 | O29: Suscripción mensual con pago anual | P29: 120 | Q29: =VLOOKUP($N$25&$E$18&$C29,temp!$A:$Y,19,0)*$J$18 ->  | R29: =ROUND(Q29/(1-(VLOOKUP("Total porcentaje:",$F:$H,3))),2) ->  | T29: =ROUND(R29*(1-S29),2) ->  | U29: =ROUND(P29*T29,2) ->  | V29: =ROUND(U29*IF(VLOOKUP($N$25&$E$18&$C29,Consolidado!$A:$U,21,0)=1,19%,0),2) ->  | W29: =U29+V29 -> 
A30: Office 365 Business PremiumN/A | B30: 3 | C30: 031c9e47-4802-4248-838e-778fb1d2cc05 | E30: Office 365 Business Premium | I30: Producto | J30: Unidad | K30: N/A | L30: N/A | M30: N/A | N30: 031c9e47-4802-4248-838e-778fb1d2cc05 | O30: Suscripción mensual con pago anual | P30: 600 | Q30: =VLOOKUP($N$25&$E$18&$C30,temp!$A:$Y,19,0)*$J$18 ->  | R30: =ROUND(Q30/(1-(VLOOKUP("Total porcentaje:",$F:$H,3))),2) ->  | T30: =ROUND(R30*(1-S30),2) ->  | U30: =ROUND(P30*T30,2) ->  | V30: =ROUND(U30*IF(VLOOKUP($N$25&$E$18&$C30,Consolidado!$A:$U,21,0)=1,19%,0),2) ->  | W30: =U30+V30 -> 
B31: 1. Si requiere agregue o elimine fila | V31: Valor Total | W31: =ROUND(SUM($W$28:$W$30),2) -> 
B34: Gravámenes adicionales* | U34: Servicios Azure
B35: Si los hay, indique los gravámenes adicionales a los que está sujeta la Orden de Compra. Son gravámenes adicionales por ejemplo; estampillas y demás impuestos territoriales. Los impuestos como ICA y retención en la fuente NO son gravámenes adicionales. | U35: Subtotal | V35: IVA | W35: Precio Total
B36: Gravámenes adicionales (estampillas) | U36: =SUMIF($O$28:$O$30,"Servicio Azure",$U$28:$U$30) -> 0 | V36: =SUMIF($O$28:$O$30,"Servicio Azure",$V$28:$V$30) -> 0 | W36: =U36+V36 -> 0
B37: No | C37: Descripción | H37: Porcentaje
B38: 1
F39: Total porcentaje: | H39: =SUM(H38:H38) -> 0
D40: Filas a agregar o eliminar Gravámenes:
D41: 1

Sheet CSV (hidden)
A1: Tipo (servicio o artÃ­culo) | B1: Cantidad | C1: CÃ³digo de unidad de medida* | D1: PosiciÃ³n | E1: Precio base | F1: Divisa | G1: DescripciÃ³n | H1: MercancÃ­a
A2: item | B2: 180 | C2: Und | E2: "61620,1" | F2: COP | G2: msf02--796b6b5f-613c-4e24-a17c-eba730d49c02 Office 365 E3
A3: item | B3: 120 | C3: Und | E3: "12993,22" | F3: COP | G3: msf02--195416c1-3447-423a-b37b-ee59a99a19c4 Exchange Online (Plan 1)
A4: item | B4: 600 | C4: Und | E4: "40604,12" | F4: COP | G4: msf02--031c9e47-4802-4248-838e-778fb1d2cc05 Office 365 Business Premium
A5: item | B5: 1 | C5: Und | E5: "0" | F5: COP | G5: msf02--IVA

Sheet Categorias (hidden)
A1: Categoría 1 | B1: Sistema Operativo, Plataforma, Nube e Infraestructura y Desarrollo Aplicaciones (Open – CSP)
A2: Categoría 2 | B2: Productividad Administración y análisis de datos (Open - CSP)
A3: Categoría 3 | B3: Movilidad (Open - CSP)
A4: Categoría 4 | B4: Aplicaciones empresariales (Open - CSP)
A5: Categoría 5 | B5: Campus (Educativo)
A6: Categoría 6 | B6: OVS (Educativo)
A7: Categoría 7 | B7: Open - CSP (Educativo)

Sheet Consolidado (hidden)
A1: LLAVE | B1: TEMP1 | C1: TEMP2 | D1: PROVEEDOR | E1: Código matriz Colombia Compra Eficiente | F1: categoria | G1: Familia | H1: Familia CCE | I1: Parametrización de los Servicios | J1: Nombre Producto | K1: Unidad de Medida | L1: Unidad TVEC | M1: Tipo | N1: Zona | O1: Asistencia | P1: Perfil | Q1: Número de parte | R1: Forma de Pago | S1: Precio | T1: Activo | U1: IVA
A2: =D2&"Categoría "&F2&E2 -> Controles Empresariales S.A.S.Categoría 1021-07160P8327 | B2: =E2&"Categoría "&F2 -> 021-07160P8327Categoría 1 | D2: Controles Empresariales S.A.S. | E2: 021-07160P8327 | F2: 1 | G2: Office Standard | H2: Office Standard | I2: N/A | J2: Microsoft®Office License/SoftwareAssurancePack Government OLP 1License NoLevel | K2: Unidad | L2: Und | M2: Producto | N2: N/A | O2: N/A | P2: N/A | Q2: 021-07160 | R2: Licencia | S2: 532.3976293 | T2: 1 | U2: 1
A3: Controles Empresariales S.A.S.Categoría 1021-07161P8328 | B3: 021-07161P8328Categoría 1 | D3: Controles Empresariales S.A.S. | E3: 021-07161P8328 | F3: 1 | G3: Office Standard | H3: Office Standard | I3: N/A | J3: Microsoft®Office SoftwareAssurance Government OLP 1License NoLevel | K3: Unidad | L3: Und | M3: Producto | N3: N/A | O3: N/A | P3: N/A | Q3: 021-07161 | R3: Licencia | S3: 195.4151816 | T3: 1 | U3: 1
A4: Controles Empresariales S.A.S.Categoría 1ea1938b1-6307-4749-ac97-37df8ab660ef | B4: ea1938b1-6307-4749-ac97-37df8ab660efCategoría 1 | D4: Controles Empresariales S.A.S. | E4: ea1938b1-6307-4749-ac97-37df8ab660ef | F4: 1 | G4: Power BI | H4: Power BI | I4: N/A | J4: Power BI Premium P5 | K4: Unidad | L4: Und | M4: Producto | N4: N/A | O4: N/A | P4: N/A | Q4: ea1938b1-6307-4749-ac97-37df8ab660ef | R4: Suscripción Mensual | S4: 79995 | T4: 1 | U4: 0
A5: Controles Empresariales S.A.S.Categoría 1c506d0f3-83c5-4939-971a-1270a48480e9 | B5: c506d0f3-83c5-4939-971a-1270a48480e9Categoría 1 | D5: Controles Empresariales S.A.S. | E5: c506d0f3-83c5-4939-971a-1270a48480e9 | F5: 1 | G5: Dynamics | H5: Dynamics | I5: N/A | J5: Dynamics 365 for Marketing Attach | K5: Unidad | L5: Und | M5: Producto | N5: N/A | O5: N/A | P5: N/A | Q5: c506d0f3-83c5-4939-971a-1270a48480e9 | R5: Suscripción Mensual | S5: 716.9117647 | T5: 1 | U5: 0
A6: Controles Empresariales S.A.S.Categoría 1076-03299P8375 | B6: 076-03299P8375Categoría 1 | D6: Controles Empresariales S.A.S. | E6: 076-03299P8375 | F6: 1 | G6: Project Standard | H6: Project Standard | I6: N/A | J6: Microsoft®ProjectStandard License/SoftwareAssurancePack Government OLP 1License NoLevel | K6: Unidad | L6: Und | M6: Producto | N6: N/A | O6: N/A | P6: N/A | Q6: 076-03299 | R6: Licencia | S6: 805.9415184 | T6: 1 | U6: 1
A7: Controles Empresariales S.A.S.Categoría 1076-03300P8376 | B7: 076-03300P8376Categoría 1 | D7: Controles Empresariales S.A.S. | E7: 076-03300P8376 | F7: 1 | G7: Project Standard | H7: Project Standard | I7: N/A | J7: Microsoft®ProjectStandard SoftwareAssurance Government OLP 1License NoLevel | K7: Unidad | L7: Und | M7: Producto | N7: N/A | O7: N/A | P7: N/A | Q7: 076-03300 | R7: Licencia | S7: 295.812815 | T7: 1 | U7: 1
A8: Controles Empresariales S.A.S.Categoría 1077-03412P2 | B8: 077-03412P2Categoría 1 | D8: Controles Empresariales S.A.S. | E8: 077-03412P2 | F8: 1 | G8: Access | H8: Access | I8: N/A | J8: Microsoft®Access License/SoftwareAssurancePack Government OLP 1License NoLevel | K8: Unidad | L8: Und | M8: Producto | N8: N/A | O8: N/A | P8: N/A | Q8: 077-03412 | R8: Licencia | S8: 206.6006264 | T8: 1 | U8: 1
A9: Controles Empresariales S.A.S.Categoría 1077-03413P3 | B9: 077-03413P3Categoría 1 | D9: Controles Empresariales S.A.S. | E9: 077-03413P3 | F9: 1 | G9: Access | H9: Access | I9: N/A | J9: Microsoft®Access SoftwareAssurance Government OLP 1License NoLevel | K9: Unidad | L9: Und | M9: Producto | N9: N/A | O9: N/A | P9: N/A | Q9: 077-03413 | R9: Licencia | S9: 75.72060124 | T9: 1 | U9: 1
A10: Controles Empresariales S.A.S.Categoría 1125-00162P8875 | B10: 125-00162P8875Categoría 1 | D10: Controles Empresariales S.A.S. | E10: 125-00162P8875 | F10: 1 | G10: Azure DevOps Server | H10: Azure DevOps Server | I10: N/A | J10: Microsoft®AzureDevOpsServer License/SoftwareAssurancePack Government OLP 1License NoLevel | K10: Unidad | L10: Und | M10: Producto | N10: N/A | O10: N/A | P10: N/A | Q10: 125-00162 | R10: Licencia | S10: 525.6139826 | T10: 1 | U10: 1
A11: Controles Empresariales S.A.S.Categoría 1125-00181P8876 | B11: 125-00181P8876Categoría 1 | D11: Controles Empresariales S.A.S. | E11: 125-00181P8876 | F11: 1 | G11: Azure DevOps Server | H11: Azure DevOps Server | I11: N/A | J11: Microsoft®AzureDevOpsServer SoftwareAssurance Government OLP 1License NoLevel | K11: Unidad | L11: Und | M11: Producto | N11: N/A | O11: N/A | P11: N/A | Q11: 125-00181 | R11: Licencia | S11: 175.2046615 | T11: 1 | U11: 1
A12: Controles Empresariales S.A.S.Categoría 1126-00257P8868 | B12: 126-00257P8868Categoría 1 | D12: Controles Empresariales S.A.S. | E12: 126-00257P8868 | F12: 1 | G12: Azure DevOps Server CAL | H12: Azure DevOps Server CAL | I12: N/A | J12: Microsoft®AzureDevOpsServerCAL License/SoftwareAssurancePack Government OLP 1License NoLevel DvcCAL | K12: Unidad | L12: Und | M12: Producto | N12: N/A | O12: N/A | P12: N/A | Q12: 126-00257 | R12: Licencia | S12: 525.6139826 | T12: 1 | U12: 1
A13: Controles Empresariales S.A.S.Categoría 1126-00260P8869 | B13: 126-00260P8869Categoría 1 | D13: Controles Empresariales S.A.S. | E13: 126-00260P8869 | F13: 1 | G13: Azure DevOps Server CAL | H13: Azure DevOps Server CAL | I13: N/A | J13: Microsoft®AzureDevOpsServerCAL License/SoftwareAssurancePack Government OLP 1License NoLevel UsrCAL | K13: Unidad | L13: Und | M13: Producto | N13: N/A | O13: N/A | P13: N/A | Q13: 126-00260 | R13: Licencia | S13: 604.5262486 | T13: 1 | U13: 1
A14: Controles Empresariales S.A.S.Categoría 1126-00295P8870 | B14: 126-00295P8870Categoría 1 | D14: Controles Empresariales S.A.S. | E14: 126-00295P8870 | F14: 1 | G14: Azure DevOps Server CAL | H14: Azure DevOps Server CAL | I14: N/A | J14: Microsoft®AzureDevOpsServerCAL SoftwareAssurance Government OLP 1License NoLevel DvcCAL | K14: Unidad | L14: Und | M14: Producto | N14: N/A | O14: N/A | P14: N/A | Q14: 126-00295 | R14: Licencia | S14: 175.2046615 | T14: 1 | U14: 1
A15: Controles Empresariales S.A.S.Categoría 1126-00298P8871 | B15: 126-00298P8871Categoría 1 | D15: Controles Empresariales S.A.S. | E15: 126-00298P8871 | F15: 1 | G15: Azure DevOps Server CAL | H15: Azure DevOps Server CAL | I15: N/A | J15: Microsoft®AzureDevOpsServerCAL SoftwareAssurance Government OLP 1License NoLevel UsrCAL | K15: Unidad | L15: Und | M15: Producto | N15: N/A | O15: N/A | P15: N/A | Q15: 126-00298 | R15: Licencia | S15: 201.508709 | T15: 1 | U15: 1
A16: Controles Empresariales S.A.S.Categoría 1771c2453-e28a-47ff-ad72-5e32696f2435 | B16: 771c2453-e28a-47ff-ad72-5e32696f2435Categoría 1 | D16: Controles Empresariales S.A.S. | E16: 771c2453-e28a-47ff-ad72-5e32696f2435 | F16: 1 | G16: Power BI | H16: Power BI | I16: N/A | J16: Power BI Premium P4 | K16: Unidad | L16: Und | M16: Producto | N16: N/A | O16: N/A | P16: N/A | Q16: 771c2453-e28a-47ff-ad72-5e32696f2435 | R16: Suscripción Mensual | S16: 39995 | T16: 1 | U16: 0
A17: Controles Empresariales S.A.S.Categoría 1228-04510P8639 | B17: 228-04510P8639Categoría 1 | D17: Controles Empresariales S.A.S. | E17: 228-04510P8639 | F17: 1 | G17: SQL Server Standard Edition | H17: SQL Server Standard Edition | I17: N/A | J17: Microsoft®SQLServerStandardEdition SoftwareAssurance Government OLP 1License NoLevel | K17: Unidad | L17: Und | M17: Producto | N17: N/A | O17: N/A | P17: N/A | Q17: 228-04510 | R17: Licencia | S17: 406.2923766 | T17: 1 | U17: 1
A18: Controles Empresariales S.A.S.Categoría 1228-04513P8638 | B18: 228-04513P8638Categoría 1 | D18: Controles Empresariales S.A.S. | E18: 228-04513P8638 | F18: 1 | G18: SQL Server Standard Edition | H18: SQL Server Standard Edition | I18: N/A | J18: Microsoft®SQLServerStandardEdition License/SoftwareAssurancePack Government OLP 1License NoLevel | K18: Unidad | L18: Und | M18: Producto | N18: N/A | O18: N/A | P18: N/A | Q18: 228-04513 | R18: Licencia | S18: 1218.994087 | T18: 1 | U18: 1
A19: Controles Empresariales S.A.S.Categoría 1228-11151 | B19: 228-11151Categoría 1 | D19: Controles Empresariales S.A.S. | E19: 228-11151 | F19: 1 | G19: SQL Server Standard Edition | H19: SQL Server Standard Edition | I19: N/A | J19: Microsoft®SQLServerStandardEdition 2017 Government OLP 1License NoLevel | K19: Unidad | L19: Und | M19: Producto | N19: N/A | O19: N/A | P19: N/A | Q19: 228-11151 | R19: Licencia | S19: 860.5201238 | T19: 1 | U19: 1
A20: Controles Empresariales S.A.S.Categoría 1269-08812P8342 | B20: 269-08812P8342Categoría 1 | D20: Controles Empresariales S.A.S. | E20: 269-08812P8342 | F20: 1 | G20: Office Professional Plus | H20: Office Professional Plus | I20: N/A | J20: Microsoft®OfficeProfessionalPlus License/SoftwareAssurancePack Government OLP 1License NoLevel | K20: Unidad | L20: Und | M20: Producto | N20: N/A | O20: N/A | P20: N/A | Q20: 269-08812 | R20: Licencia | S20: 726.2806534 | T20: 1 | U20: 1
A21: Controles Empresariales S.A.S.Categoría 1269-08814P8343 | B21: 269-08814P8343Categoría 1 | D21: Controles Empresariales S.A.S. | E21: 269-08814P8343 | F21: 1 | G21: Office Professional Plus | H21: Office Professional Plus | I21: N/A | J21: Microsoft®OfficeProfessionalPlus SoftwareAssurance Government OLP 1License NoLevel | K21: Unidad | L21: Und | M21: Producto | N21: N/A | O21: N/A | P21: N/A | Q21: 269-08814 | R21: Licencia | S21: 266.596382 | T21: 1 | U21: 1
A22: Controles Empresariales S.A.S.Categoría 1f28514f0-6516-4ef9-8222-1c605a05d245 | B22: f28514f0-6516-4ef9-8222-1c605a05d245Categoría 1 | D22: Controles Empresariales S.A.S. | E22: f28514f0-6516-4ef9-8222-1c605a05d245 | F22: 1 | G22: Dynamics | H22: Dynamics | I22: N/A | J22: Dynamics 365 for Sales Professional | K22: Unidad | L22: Und | M22: Producto | N22: N/A | O22: N/A | P22: N/A | Q22: f28514f0-6516-4ef9-8222-1c605a05d245 | R22: Suscripción Mensual | S22: 62.13235294 | T22: 1 | U22: 0
A23: Controles Empresariales S.A.S.Categoría 129a03361-6ac6-4165-9b7f-c714e7ed6258 | B23: 29a03361-6ac6-4165-9b7f-c714e7ed6258Categoría 1 | D23: Controles Empresariales S.A.S. | E23: 29a03361-6ac6-4165-9b7f-c714e7ed6258 | F23: 1 | G23: Dynamics | H23: Dynamics | I23: N/A | J23: Dynamics 365 for Marketing | K23: Unidad | L23: Und | M23: Producto | N23: N/A | O23: N/A | P23: N/A | Q23: 29a03361-6ac6-4165-9b7f-c714e7ed6258 | R23: Suscripción Mensual | S23: 1433.823529 | T23: 1 | U23: 0
A24: Controles Empresariales S.A.S.Categoría 1312-02971P8129 | B24: 312-02971P8129Categoría 1 | D24: Controles Empresariales S.A.S. | E24: 312-02971P8129 | F24: 1 | G24: Exchange Server - Standard | H24: Exchange Server - Standard | I24: N/A | J24: Microsoft®ExchangeServerStandard SoftwareAssurance Government OLP 1License NoLevel | K24: Unidad | L24: Und | M24: Producto | N24: N/A | O24: N/A | P24: N/A | Q24: 312-02971 | R24: Licencia | S24: 320.3975767 | T24: 1 | U24: 1
A25: Controles Empresariales S.A.S.Categoría 1312-02972P8128 | B25: 312-02972P8128Categoría 1 | D25: Controles Empresariales S.A.S. | E25: 312-02972P8128 | F25: 1 | G25: Exchange Server - Standard | H25: Exchange Server - Standard | I25: N/A | J25: Microsoft®ExchangeServerStandard License/SoftwareAssurancePack Government OLP 1License NoLevel | K25: Unidad | L25: Und | M25: Producto | N25: N/A | O25: N/A | P25: N/A | Q25: 312-02972 | R25: Licencia | S25: 961.426827 | T25: 1 | U25: 1
A26: Controles Empresariales S.A.S.Categoría 1359-01384P8626 | B26: 359-01384P8626Categoría 1 | D26: Controles Empresariales S.A.S. | E26: 359-01384P8626 | F26: 1 | G26: SQL CAL | H26: SQL CAL | I26: N/A | J26: Microsoft®SQLCAL SoftwareAssurance Government OLP 1License NoLevel UsrCAL | K26: Unidad | L26: Und | M26: Producto | N26: N/A | O26: N/A | P26: N/A | Q26: 359-01384 | R26: Licencia | S26: 94.36246186 | T26: 1 | U26: 1
A27: Controles Empresariales S.A.S.Categoría 1359-01385P8625 | B27: 359-01385P8625Categoría 1 | D27: Controles Empresariales S.A.S. | E27: 359-01385P8625 | F27: 1 | G27: SQL CAL | H27: SQL CAL | I27: N/A | J27: Microsoft®SQLCAL SoftwareAssurance Government OLP 1License NoLevel DvcCAL | K27: Unidad | L27: Und | M27: Producto | N27: N/A | O27: N/A | P27: N/A | Q27: 359-01385 | R27: Licencia | S27: 94.36246186 | T27: 1 | U27: 1
A28: Controles Empresariales S.A.S.Categoría 1359-01386P8624 | B28: 359-01386P8624Categoría 1 | D28: Controles Empresariales S.A.S. | E28: 359-01386P8624 | F28: 1 | G28: SQL CAL | H28: SQL CAL | I28: N/A | J28: Microsoft®SQLCAL License/SoftwareAssurancePack Government OLP 1License NoLevel UsrCAL | K28: Unidad | L28: Und | M28: Producto | N28: N/A | O28: N/A | P28: N/A | Q28: 359-01386 | R28: Licencia | S28: 283.0876249 | T28: 1 | U28: 1
A29: Controles Empresariales S.A.S.Categoría 1359-01387P8623 | B29: 359-01387P8623Categoría 1 | D29: Controles Empresariales S.A.S. | E29: 359-01387P8623 | F29: 1 | G29: SQL CAL | H29: SQL CAL | I29: N/A | J29: Microsoft®SQLCAL License/SoftwareAssurancePack Government OLP 1License NoLevel DvcCAL | K29: Unidad | L29: Und | M29: Producto | N29: N/A | O29: N/A | P29: N/A | Q29: 359-01387 | R29: Licencia | S29: 283.0876249 | T29: 1 | U29: 1
A30: Controles Empresariales S.A.S.Categoría 1359-06588 | B30: 359-06588Categoría 1 | D30: Controles Empresariales S.A.S. | E30: 359-06588 | F30: 1 | G30: SQL CAL | H30: SQL CAL | I30: N/A | J30: Microsoft®SQLCAL 2017 Government OLP 1License NoLevel DvcCAL | K30: Unidad | L30: Und | M30: Producto | N30: N/A | O30: N/A | P30: N/A | Q30: 359-06588 | R30: Licencia | S30: 199.8266254 | T30: 1 | U30: 1
A31: Controles Empresariales S.A.S.Categoría 1359-06589 | B31: 359-06589Categoría 1 | D31: Controles Empresariales S.A.S. | E31: 359-06589 | F31: 1 | G31: SQL CAL | H31: SQL CAL | I31: N/A | J31: Microsoft®SQLCAL 2017 Government OLP 1License NoLevel UsrCAL | K31: Unidad | L31: Und | M31: Producto | N31: N/A | O31: N/A | P31: N/A | Q31: 359-06589 | R31: Licencia | S31: 199.8266254 | T31: 1 | U31: 1
A32: Controles Empresariales S.A.S.Categoría 1381-02587P8147 | B32: 381-02587P8147Categoría 1 | D32: Controles Empresariales S.A.S. | E32: 381-02587P8147 | F32: 1 | G32: Exchange Standard CAL | H32: Exchange Standard CAL | I32: N/A | J32: Microsoft®ExchangeStandardCAL SoftwareAssurance Government OLP 1License NoLevel UsrCAL | K32: Unidad | L32: Und | M32: Producto | N32: N/A | O32: N/A | P32: N/A | Q32: 381-02587 | R32: Licencia | S32: 39.26314958 | T32: 1 | U32: 1
A33: Controles Empresariales S.A.S.Categoría 1381-02588P8146 | B33: 381-02588P8146Categoría 1 | D33: Controles Empresariales S.A.S. | E33: 381-02588P8146 | F33: 1 | G33: Exchange Standard CAL | H33: Exchange Standard CAL | I33: N/A | J33: Microsoft®ExchangeStandardCAL SoftwareAssurance Government OLP 1License NoLevel DvcCAL | K33: Unidad | L33: Und | M33: Producto | N33: N/A | O33: N/A | P33: N/A | Q33: 381-02588 | R33: Licencia | S33: 30.3625022 | T33: 1 | U33: 1
A34: Controles Empresariales S.A.S.Categoría 1381-02590P8144 | B34: 381-02590P8144Categoría 1 | D34: Controles Empresariales S.A.S. | E34: 381-02590P8144 | F34: 1 | G34: Exchange Standard CAL | H34: Exchange Standard CAL | I34: N/A | J34: Microsoft®ExchangeStandardCAL License/SoftwareAssurancePack Government OLP 1License NoLevel DvcCAL | K34: Unidad | L34: Und | M34: Producto | N34: N/A | O34: N/A | P34: N/A | Q34: 381-02590 | R34: Licencia | S34: 90.97072685 | T34: 1 | U34: 1
A35: Controles Empresariales S.A.S.Categoría 1381-02592P8145 | B35: 381-02592P8145Categoría 1 | D35: Controles Empresariales S.A.S. | E35: 381-02592P8145 | F35: 1 | G35: Exchange Standard CAL | H35: Exchange Standard CAL | I35: N/A | J35: Microsoft®ExchangeStandardCAL License/SoftwareAssurancePack Government OLP 1License NoLevel UsrCAL | K35: Unidad | L35: Und | M35: Producto | N35: N/A | O35: N/A | P35: N/A | Q35: 381-02592 | R35: Licencia | S35: 117.6841856 | T35: 1 | U35: 1
A36: Controles Empresariales S.A.S.Categoría 1395-03180P8119 | B36: 395-03180P8119Categoría 1 | D36: Controles Empresariales S.A.S. | E36: 395-03180P8119 | F36: 1 | G36: Exchange Server - Enterprise | H36: Exchange Server - Enterprise | I36: N/A | J36: Microsoft®ExchangeServerEnterprise License/SoftwareAssurancePack Government OLP 1License NoLevel | K36: Unidad | L36: Und | M36: Producto | N36: N/A | O36: N/A | P36: N/A | Q36: 395-03180 | R36: Licencia | S36: 5507.251414 | T36: 1 | U36: 1
A37: Controles Empresariales S.A.S.Categoría 1395-03181P8120 | B37: 395-03181P8120Categoría 1 | D37: Controles Empresariales S.A.S. | E37: 395-03181P8120 | F37: 1 | G37: Exchange Server - Enterprise | H37: Exchange Server - Enterprise | I37: N/A | J37: Microsoft®ExchangeServerEnterprise SoftwareAssurance Government OLP 1License NoLevel | K37: Unidad | L37: Und | M37: Producto | N37: N/A | O37: N/A | P37: N/A | Q37: 395-03181 | R37: Licencia | S37: 1835.824486 | T37: 1 | U37: 1
A38: Controles Empresariales S.A.S.Categoría 13ND-00436P8812 | B38: 3ND-00436P8812Categoría 1 | D38: Controles Empresariales S.A.S. | E38: 3ND-00436P8812 | F38: 1 | G38: Sys Ctr Service Mgr Clt Mgmt Lic | H38: Sys Ctr Service Mgr Clt Mgmt Lic | I38: N/A | J38: Microsoft®SysCtrServiceMgrCltMgmtLic License/SoftwareAssurancePack Government OLP 1License NoLevel PerOSE | K38: Unidad | L38: Und | M38: Producto | N38: N/A | O38: N/A | P38: N/A | Q38: 3ND-00436 | R38: Licencia | S38: 24.54961209 | T38: 1 | U38: 1
A39: Controles Empresariales S.A.S.Categoría 13ND-00437P8813 | B39: 3ND-00437P8813Categoría 1 | D39: Controles Empresariales S.A.S. | E39: 3ND-00437P8813 | F39: 1 | G39: Sys Ctr Service Mgr Clt Mgmt Lic | H39: Sys Ctr Service Mgr Clt Mgmt Lic | I39: N/A | J39: Microsoft®SysCtrServiceMgrCltMgmtLic License/SoftwareAssurancePack Government OLP 1License NoLevel PerUsr | K39: Unidad | L39: Und | M39: Producto | N39: N/A | O39: N/A | P39: N/A | Q39: 3ND-00437 | R39: Licencia | S39: 31.94143577 | T39: 1 | U39: 1
A40: Controles Empresariales S.A.S.Categoría 13ND-00438P8814 | B40: 3ND-00438P8814Categoría 1 | D40: Controles Empresariales S.A.S. | E40: 3ND-00438P8814 | F40: 1 | G40: Sys Ctr Service Mgr Clt Mgmt Lic | H40: Sys Ctr Service Mgr Clt Mgmt Lic | I40: N/A | J40: Microsoft®SysCtrServiceMgrCltMgmtLic SoftwareAssurance Government OLP 1License NoLevel PerOSE | K40: Unidad | L40: Und | M40: Producto | N40: N/A | O40: N/A | P40: N/A | Q40: 3ND-00438 | R40: Licencia | S40: 8.1403 | T40: 1 | U40: 1
A41: Controles Empresariales S.A.S.Categoría 13ND-00439P8815 | B41: 3ND-00439P8815Categoría 1 | D41: Controles Empresariales S.A.S. | E41: 3ND-00439P8815 | F41: 1 | G41: Sys Ctr Service Mgr Clt Mgmt Lic | H41: Sys Ctr Service Mgr Clt Mgmt Lic | I41: N/A | J41: Microsoft®SysCtrServiceMgrCltMgmtLic SoftwareAssurance Government OLP 1License NoLevel PerUsr | K41: Unidad | L41: Und | M41: Producto | N41: N/A | O41: N/A | P41: N/A | Q41: 3ND-00439 | R41: Licencia | S41: 10.60812083 | T41: 1 | U41: 1
A42: Controles Empresariales S.A.S.Categoría 13NN-00024P8361 | B42: 3NN-00024P8361Categoría 1 | D42: Controles Empresariales S.A.S. | E42: 3NN-00024P8361 | F42: 1 | G42: OneDrive for Business Plan 1 Open | H42: OneDrive for Business Plan 1 Open | I42: N/A | J42: Microsoft®OneDriveforBusinessPlan1Open ShrdSvr MonthlySubscriptions-VolumeLicense Government OLP 1License NoLevel Qualified Annual | K42: Unidad | L42: Und | M42: Producto | N42: N/A | O42: N/A | P42: N/A | Q42: 3NN-00024 | R42: Suscripción Anual | S42: 59.64909274 | T42: 1 | U42: 0
A43: Controles Empresariales S.A.S.Categoría 13PP-00006P8415 | B43: 3PP-00006P8415Categoría 1 | D43: Controles Empresariales S.A.S. | E43: 3PP-00006P8415 | F43: 1 | G43: Proj Online Essentials Open | H43: Proj Online Essentials Open | I43: N/A | J43: Microsoft®ProjOnlineEssentialsOpen ShrdSvr MonthlySubscriptions-VolumeLicense Government OLP 1License NoLevel Qualified Annual | K43: Unidad | L43: Und | M43: Producto | N43: N/A | O43: N/A | P43: N/A | Q43: 3PP-00006 | R43: Suscripción Anual | S43: 83.50876392 | T43: 1 | U43: 0
A44: Controles Empresariales S.A.S.Categoría 13VU-00089P8202 | B44: 3VU-00089P8202Categoría 1 | D44: Controles Empresariales S.A.S. | E44: 3VU-00089P8202 | F44: 1 | G44: MSDN Platforms | H44: MSDN Platforms | I44: N/A | J44: Microsoft®MSDNPlatforms License/SoftwareAssurancePack Government OLP 1License NoLevel Qualified | K44: Unidad | L44: Und | M44: Producto | N44: N/A | O44: N/A | P44: N/A | Q44: 3VU-00089 | R44: Licencia | S44: 2190.187124 | T44: 1 | U44: 1
A45: Controles Empresariales S.A.S.Categoría 13VU-00090P8203 | B45: 3VU-00090P8203Categoría 1 | D45: Controles Empresariales S.A.S. | E45: 3VU-00090P8203 | F45: 1 | G45: MSDN Platforms | H45: MSDN Platforms | I45: N/A | J45: Microsoft®MSDNPlatforms SoftwareAssurance Government OLP 1License NoLevel Qualified | K45: Unidad | L45: Und | M45: Producto | N45: N/A | O45: N/A | P45: N/A | Q45: 3VU-00090 | R45: Licencia | S45: 2190.187124 | T45: 1 | U45: 1
A46: Controles Empresariales S.A.S.Categoría 13YF-00123P8336 | B46: 3YF-00123P8336Categoría 1 | D46: Controles Empresariales S.A.S. | E46: 3YF-00123P8336 | F46: 1 | G46: Office Mac Standard | H46: Office Mac Standard | I46: N/A | J46: Microsoft®OfficeMacStandard License/SoftwareAssurancePack Government OLP 1License NoLevel | K46: Unidad | L46: Und | M46: Producto | N46: N/A | O46: N/A | P46: N/A | Q46: 3YF-00123 | R46: Licencia | S46: 532.3976293 | T46: 1 | U46: 1
A47: Controles Empresariales S.A.S.Categoría 13YF-00124P8337 | B47: 3YF-00124P8337Categoría 1 | D47: Controles Empresariales S.A.S. | E47: 3YF-00124P8337 | F47: 1 | G47: Office Mac Standard | H47: Office Mac Standard | I47: N/A | J47: Microsoft®OfficeMacStandard SoftwareAssurance Government OLP 1License NoLevel | K47: Unidad | L47: Und | M47: Producto | N47: N/A | O47: N/A | P47: N/A | Q47: 3YF-00124 | R47: Licencia | S47: 195.4151816 | T47: 1 | U47: 1
A48: Controles Empresariales S.A.S.Categoría 13ZK-00165P8796 | B48: 3ZK-00165P8796Categoría 1 | D48: Controles Empresariales S.A.S. | E48: 3ZK-00165P8796 | F48: 1 | G48: Sys Ctr Orchestrator Svr | H48: Sys Ctr Orchestrator Svr | I48: N/A | J48: Microsoft®SysCtrOrchestratorSvr License/SoftwareAssurancePack Government OLP 1License NoLevel PerOSE | K48: Unidad | L48: Und | M48: Producto | N48: N/A | O48: N/A | P48: N/A | Q48: 3ZK-00165 | R48: Licencia | S48: 24.54961209 | T48: 1 | U48: 1
A49: Controles Empresariales S.A.S.Categoría 13ZK-00166P8797 | B49: 3ZK-00166P8797Categoría 1 | D49: Controles Empresariales S.A.S. | E49: 3ZK-00166P8797 | F49: 1 | G49: Sys Ctr Orchestrator Svr | H49: Sys Ctr Orchestrator Svr | I49: N/A | J49: Microsoft®SysCtrOrchestratorSvr License/SoftwareAssurancePack Government OLP 1License NoLevel PerUsr | K49: Unidad | L49: Und | M49: Producto | N49: N/A | O49: N/A | P49: N/A | Q49: 3ZK-00166 | R49: Licencia | S49: 31.94143577 | T49: 1 | U49: 1
A50: Controles Empresariales S.A.S.Categoría 13ZK-00167P8798 | B50: 3ZK-00167P8798Categoría 1 | D50: Controles Empresariales S.A.S. | E50: 3ZK-00167P8798 | F50: 1 | G50: Sys Ctr Orchestrator Svr | H50: Sys Ctr Orchestrator Svr | I50: N/A | J50: Microsoft®SysCtrOrchestratorSvr SoftwareAssurance Government OLP 1License NoLevel PerOSE | K50: Unidad | L50: Und | M50: Producto | N50: N/A | O50: N/A | P50: N/A | Q50: 3ZK-00167 | R50: Licencia | S50: 8.1403 | T50: 1 | U50: 1
A51: Controles Empresariales S.A.S.Categoría 13ZK-00168P8799 | B51: 3ZK-00168P8799Categoría 1 | D51: Controles Empresariales S.A.S. | E51: 3ZK-00168P8799 | F51: 1 | G51: Sys Ctr Orchestrator Svr | H51: Sys Ctr Orchestrator Svr | I51: N/A | J51: Microsoft®SysCtrOrchestratorSvr SoftwareAssurance Government OLP 1License NoLevel PerUsr | K51: Unidad | L51: Und | M51: Producto | N51: N/A | O51: N/A | P51: N/A | Q51: 3ZK-00168 | R51: Licencia | S51: 10.60812083 | T51: 1 | U51: 1
A52: Controles Empresariales S.A.S.Categoría 15A5-00006P8276 | B52: 5A5-00006P8276Categoría 1 | D52: Controles Empresariales S.A.S. | E52: 5A5-00006P8276 | F52: 1 | G52: O365 Extra File Storage Open | H52: O365 Extra File Storage Open | I52: N/A | J52: Microsoft®O365ExtraFileStorageOpen ShrdSvr MonthlySubscriptions-VolumeLicense Government OLP 1License NoLevel Addon Qualified Annual | K52: Unidad | L52: Und | M52: Producto | N52: N/A | O52: N/A | P52: N/A | Q52: 5A5-00006 | R52: Suscripción Anual | S52: 2.807 | T52: 1 | U52: 0
A53: Controles Empresariales S.A.S.Categoría 15A9-00006P8071 | B53: 5A9-00006P8071Categoría 1 | D53: Controles Empresariales S.A.S. | E53: 5A9-00006P8071 | F53: 1 | G53: EOA for Exchange Online Open | H53: EOA for Exchange Online Open | I53: N/A | J53: Microsoft®EOAforExchangeOnlineOpen ShrdSvr MonthlySubscriptions-VolumeLicense Government OLP 1License NoLevel Addon Qualified Annual | K53: Unidad | L53: Und | M53: Producto | N53: N/A | O53: N/A | P53: N/A | Q53: 5A9-00006 | R53: Suscripción Anual | S53: 35.78938144 | T53: 1 | U53: 0
A54: Controles Empresariales S.A.S.Categoría 15HK-00288P8200 | B54: 5HK-00288P8200Categoría 1 | D54: Controles Empresariales S.A.S. | E54: 5HK-00288P8200 | F54: 1 | G54: Lync Mac | H54: Lync Mac | I54: N/A | J54: Microsoft®LyncMac License/SoftwareAssurancePack Government OLP 1License NoLevel | K54: Unidad | L54: Und | M54: Producto | N54: N/A | O54: N/A | P54: N/A | Q54: 5HK-00288 | R54: Licencia | S54: 43.48534485 | T54: 1 | U54: 1
A55: Controles Empresariales S.A.S.Categoría 15HK-00289P8201 | B55: 5HK-00289P8201Categoría 1 | D55: Controles Empresariales S.A.S. | E55: 5HK-00289P8201 | F55: 1 | G55: Lync Mac | H55: Lync Mac | I55: N/A | J55: Microsoft®LyncMac SoftwareAssurance Government OLP 1License NoLevel | K55: Unidad | L55: Und | M55: Producto | N55: N/A | O55: N/A | P55: N/A | Q55: 5HK-00289 | R55: Licencia | S55: 15.88294167 | T55: 1 | U55: 1
A56: Controles Empresariales S.A.S.Categoría 15HK-00290P8199 | B56: 5HK-00290P8199Categoría 1 | D56: Controles Empresariales S.A.S. | E56: 5HK-00290P8199 | F56: 1 | G56: Lync Mac | H56: Lync Mac | I56: N/A | J56: Microsoft®LyncMac 2011 Government OLP 1License NoLevel | K56: Unidad | L56: Und | M56: Producto | N56: N/A | O56: N/A | P56: N/A | Q56: 5HK-00290 | R56: Licencia | S56: 27.60228514 | T56: 1 | U56: 1
A57: Controles Empresariales S.A.S.Categoría 15HU-00285P8532 | B57: 5HU-00285P8532Categoría 1 | D57: Controles Empresariales S.A.S. | E57: 5HU-00285P8532 | F57: 1 | G57: SfB Server | H57: SfB Server | I57: N/A | J57: Microsoft®SfBServer License/SoftwareAssurancePack Government OLP 1License NoLevel | K57: Unidad | L57: Und | M57: Producto | N57: N/A | O57: N/A | P57: N/A | Q57: 5HU-00285 | R57: Licencia | S57: 4956.549682 | T57: 1 | U57: 1
A58: Controles Empresariales S.A.S.Categoría 15HU-00286P8533 | B58: 5HU-00286P8533Categoría 1 | D58: Controles Empresariales S.A.S. | E58: 5HU-00286P8533 | F58: 1 | G58: SfB Server | H58: SfB Server | I58: N/A | J58: Microsoft®SfBServer SoftwareAssurance Government OLP 1License NoLevel | K58: Unidad | L58: Und | M58: Producto | N58: N/A | O58: N/A | P58: N/A | Q58: 5HU-00286 | R58: Licencia | S58: 1652.257302 | T58: 1 | U58: 1
A59: Controles Empresariales S.A.S.Categoría 16VC-01217P9015 | B59: 6VC-01217P9015Categoría 1 | D59: Controles Empresariales S.A.S. | E59: 6VC-01217P9015 | F59: 1 | G59: Win Rmt Dsktp Svcs CAL | H59: Win Rmt Dsktp Svcs CAL | I59: N/A | J59: Microsoft®WinRmtDsktpSvcsCAL License/SoftwareAssurancePack Government OLP 1License NoLevel DvcCAL | K59: Unidad | L59: Und | M59: Producto | N59: N/A | O59: N/A | P59: N/A | Q59: 6VC-01217 | R59: Licencia | S59: 147.8244755 | T59: 1 | U59: 1
A60: Controles Empresariales S.A.S.Categoría 16VC-01218P9016 | B60: 6VC-01218P9016Categoría 1 | D60: Controles Empresariales S.A.S. | E60: 6VC-01218P9016 | F60: 1 | G60: Win Rmt Dsktp Svcs CAL | H60: Win Rmt Dsktp Svcs CAL | I60: N/A | J60: Microsoft®WinRmtDsktpSvcsCAL License/SoftwareAssurancePack Government OLP 1License NoLevel UsrCAL | K60: Unidad | L60: Und | M60: Producto | N60: N/A | O60: N/A | P60: N/A | Q60: 6VC-01218 | R60: Licencia | S60: 177.8127672 | T60: 1 | U60: 1
A61: =D61&"Categoría "&F61&E61 -> Controles Empresariales S.A.S.Categoría 16VC-01219P9017 | B61: =E61&"Categoría "&F61 -> 6VC-01219P9017Categoría 1 | D61: Controles Empresariales S.A.S. | E61: 6VC-01219P9017 | F61: 1 | G61: Win Rmt Dsktp Svcs CAL | H61: Win Rmt Dsktp Svcs CAL | I61: N/A | J61: Microsoft®WinRmtDsktpSvcsCAL SoftwareAssurance Government OLP 1License NoLevel DvcCAL | K61: Unidad | L61: Und | M61: Producto | N61: N/A | O61: N/A | P61: N/A | Q61: 6VC-01219 | R61: Licencia | S61: 49.30989167 | T61: 1 | U61: 1
A62: Controles Empresariales S.A.S.Categoría 16VC-01220P9018 | B62: 6VC-01220P9018Categoría 1 | D62: Controles Empresariales S.A.S. | E62: 6VC-01220P9018 | F62: 1 | G62: Win Rmt Dsktp Svcs CAL | H62: Win Rmt Dsktp Svcs CAL | I62: N/A | J62: Microsoft®WinRmtDsktpSvcsCAL SoftwareAssurance Government OLP 1License NoLevel UsrCAL | K62: Unidad | L62: Und | M62: Producto | N62: N/A | O62: N/A | P62: N/A | Q62: 6VC-01220 | R62: Licencia | S62: 59.30992895 | T62: 1 | U62: 1
A63: Controles Empresariales S.A.S.Categoría 16XC-00281P9026 | B63: 6XC-00281P9026Categoría 1 | D63: Controles Empresariales S.A.S. | E63: 6XC-00281P9026 | F63: 1 | G63: Win Rmt Dsktp Svcs Ext Conn | H63: Win Rmt Dsktp Svcs Ext Conn | I63: N/A | J63: Microsoft®WinRmtDsktpSvcsExtConn License/SoftwareAssurancePack Government OLP 1License NoLevel Qualified | K63: Unidad | L63: Und | M63: Producto | N63: N/A | O63: N/A | P63: N/A | Q63: 6XC-00281 | R63: Licencia | S63: 14958.39765 | T63: 1 | U63: 1
A64: Controles Empresariales S.A.S.Categoría 16XC-00282P9027 | B64: 6XC-00282P9027Categoría 1 | D64: Controles Empresariales S.A.S. | E64: 6XC-00282P9027 | F64: 1 | G64: Win Rmt Dsktp Svcs Ext Conn | H64: Win Rmt Dsktp Svcs Ext Conn | I64: N/A | J64: Microsoft®WinRmtDsktpSvcsExtConn SoftwareAssurance Government OLP 1License NoLevel Qualified | K64: Unidad | L64: Und | M64: Producto | N64: N/A | O64: N/A | P64: N/A | Q64: 6XC-00282 | R64: Licencia | S64: 4986.093522 | T64: 1 | U64: 1
A65: Controles Empresariales S.A.S.Categoría 16YH-00528P8603 | B65: 6YH-00528P8603Categoría 1 | D65: Controles Empresariales S.A.S. | E65: 6YH-00528P8603 | F65: 1 | G65: Skype for Business | H65: Skype for Business | I65: N/A | J65: Microsoft®SkypeforBusiness License/SoftwareAssurancePack Government OLP 1License NoLevel | K65: Unidad | L65: Und | M65: Producto | N65: N/A | O65: N/A | P65: N/A | Q65: 6YH-00528 | R65: Licencia | S65: 43.22803511 | T65: 1 | U65: 1
A66: Controles Empresariales S.A.S.Categoría 16YH-00529P8604 | B66: 6YH-00529P8604Categoría 1 | D66: Controles Empresariales S.A.S. | E66: 6YH-00529P8604 | F66: 1 | G66: Skype for Business | H66: Skype for Business | I66: N/A | J66: Microsoft®SkypeforBusiness SoftwareAssurance Government OLP 1License NoLevel | K66: Unidad | L66: Und | M66: Producto | N66: N/A | O66: N/A | P66: N/A | Q66: 6YH-00529 | R66: Licencia | S66: 15.88294167 | T66: 1 | U66: 1
A67: Controles Empresariales S.A.S.Categoría 16ZH-00350P8591 | B67: 6ZH-00350P8591Categoría 1 | D67: Controles Empresariales S.A.S. | E67: 6ZH-00350P8591 | F67: 1 | G67: SfB Server Std CAL | H67: SfB Server Std CAL | I67: N/A | J67: Microsoft®SfBServerStdCAL License/SoftwareAssurancePack Government OLP 1License NoLevel DvcCAL | K67: Unidad | L67: Und | M67: Producto | N67: N/A | O67: N/A | P67: N/A | Q67: 6ZH-00350 | R67: Licencia | S67: 41.61401032 | T67: 1 | U67: 1
A68: Controles Empresariales S.A.S.Categoría 16ZH-00371P8592 | B68: 6ZH-00371P8592Categoría 1 | D68: Controles Empresariales S.A.S. | E68: 6ZH-00371P8592 | F68: 1 | G68: SfB Server Std CAL | H68: SfB Server Std CAL | I68: N/A | J68: Microsoft®SfBServerStdCAL License/SoftwareAssurancePack Government OLP 1License NoLevel UsrCAL | K68: Unidad | L68: Und | M68: Producto | N68: N/A | O68: N/A | P68: N/A | Q68: 6ZH-00371 | R68: Licencia | S68: 53.5788467 | T68: 1 | U68: 1
A69: Controles Empresariales S.A.S.Categoría 16ZH-00372P8593 | B69: 6ZH-00372P8593Categoría 1 | D69: Controles Empresariales S.A.S. | E69: 6ZH-00372P8593 | F69: 1 | G69: SfB Server Std CAL | H69: SfB Server Std CAL | I69: N/A | J69: Microsoft®SfBServerStdCAL SoftwareAssurance Government OLP 1License NoLevel DvcCAL | K69: Unidad | L69: Und | M69: Producto | N69: N/A | O69: N/A | P69: N/A | Q69: 6ZH-00372 | R69: Licencia | S69: 13.87125833 | T69: 1 | U69: 1
A70: Controles Empresariales S.A.S.Categoría 16ZH-00373P8594 | B70: 6ZH-00373P8594Categoría 1 | D70: Controles Empresariales S.A.S. | E70: 6ZH-00373P8594 | F70: 1 | G70: SfB Server Std CAL | H70: SfB Server Std CAL | I70: N/A | J70: Microsoft®SfBServerStdCAL SoftwareAssurance Government OLP 1License NoLevel UsrCAL | K70: Unidad | L70: Und | M70: Producto | N70: N/A | O70: N/A | P70: N/A | Q70: 6ZH-00373 | R70: Licencia | S70: 17.894625 | T70: 1 | U70: 1
A71: Controles Empresariales S.A.S.Categoría 176N-00597P8484 | B71: 76N-00597P8484Categoría 1 | D71: Controles Empresariales S.A.S. | E71: 76N-00597P8484 | F71: 1 | G71: SharePoint Enterprise CAL | H71: SharePoint Enterprise CAL | I71: N/A | J71: Microsoft®SharePointEnterpriseCAL License/SoftwareAssurancePack Government OLP 1License NoLevel DvcCAL | K71: Unidad | L71: Und | M71: Producto | N71: N/A | O71: N/A | P71: N/A | Q71: 76N-00597 | R71: Licencia | S71: 111.27475 | T71: 1 | U71: 1
A72: Controles Empresariales S.A.S.Categoría 176N-00603P8485 | B72: 76N-00603P8485Categoría 1 | D72: Controles Empresariales S.A.S. | E72: 76N-00603P8485 | F72: 1 | G72: SharePoint Enterprise CAL | H72: SharePoint Enterprise CAL | I72: N/A | J72: Microsoft®SharePointEnterpriseCAL License/SoftwareAssurancePack Government OLP 1License NoLevel UsrCAL | K72: Unidad | L72: Und | M72: Producto | N72: N/A | O72: N/A | P72: N/A | Q72: 76N-00603 | R72: Licencia | S72: 145.5671762 | T72: 1 | U72: 1
A73: Controles Empresariales S.A.S.Categoría 176N-00654P8486 | B73: 76N-00654P8486Categoría 1 | D73: Controles Empresariales S.A.S. | E73: 76N-00654P8486 | F73: 1 | G73: SharePoint Enterprise CAL | H73: SharePoint Enterprise CAL | I73: N/A | J73: Microsoft®SharePointEnterpriseCAL SoftwareAssurance Government OLP 1License NoLevel DvcCAL | K73: Unidad | L73: Und | M73: Producto | N73: N/A | O73: N/A | P73: N/A | Q73: 76N-00654 | R73: Licencia | S73: 37.05251786 | T73: 1 | U73: 1
A74: Controles Empresariales S.A.S.Categoría 176N-00660P8487 | B74: 76N-00660P8487Categoría 1 | D74: Controles Empresariales S.A.S. | E74: 76N-00660P8487 | F74: 1 | G74: SharePoint Enterprise CAL | H74: SharePoint Enterprise CAL | I74: N/A | J74: Microsoft®SharePointEnterpriseCAL SoftwareAssurance Government OLP 1License NoLevel UsrCAL | K74: Unidad | L74: Und | M74: Producto | N74: N/A | O74: N/A | P74: N/A | Q74: 76N-00660 | R74: Licencia | S74: 48.56133862 | T74: 1 | U74: 1
A75: Controles Empresariales S.A.S.Categoría 177D-00105P8895 | B75: 77D-00105P8895Categoría 1 | D75: Controles Empresariales S.A.S. | E75: 77D-00105P8895 | F75: 1 | G75: Visual Studio Pro Sub MSDN | H75: Visual Studio Pro Sub MSDN | I75: N/A | J75: Microsoft®VisualStudioProSubMSDN License/SoftwareAssurancePack Government OLP 1License NoLevel Qualified | K75: Unidad | L75: Und | M75: Producto | N75: N/A | O75: N/A | P75: N/A | Q75: 77D-00105 | R75: Licencia | S75: 1031.157867 | T75: 1 | U75: 1
A76: Controles Empresariales S.A.S.Categoría 177D-00106P8896 | B76: 77D-00106P8896Categoría 1 | D76: Controles Empresariales S.A.S. | E76: 77D-00106P8896 | F76: 1 | G76: Visual Studio Pro Sub MSDN | H76: Visual Studio Pro Sub MSDN | I76: N/A | J76: Microsoft®VisualStudioProSubMSDN SoftwareAssurance Government OLP 1License NoLevel Qualified | K76: Unidad | L76: Und | M76: Producto | N76: N/A | O76: N/A | P76: N/A | Q76: 77D-00106 | R76: Licencia | S76: 850.9239366 | T76: 1 | U76: 1
A77: Controles Empresariales S.A.S.Categoría 17AH-00419P8548 | B77: 7AH-00419P8548Categoría 1 | D77: Controles Empresariales S.A.S. | E77: 7AH-00419P8548 | F77: 1 | G77: SfB Server Ent CAL | H77: SfB Server Ent CAL | I77: N/A | J77: Microsoft®SfBServerEntCAL License/SoftwareAssurancePack Government OLP 1License NoLevel DvcCAL | K77: Unidad | L77: Und | M77: Producto | N77: N/A | O77: N/A | P77: N/A | Q77: 7AH-00419 | R77: Licencia | S77: 145.5671781 | T77: 1 | U77: 1
A78: Controles Empresariales S.A.S.Categoría 17AH-00420P8549 | B78: 7AH-00420P8549Categoría 1 | D78: Controles Empresariales S.A.S. | E78: 7AH-00420P8549 | F78: 1 | G78: SfB Server Ent CAL | H78: SfB Server Ent CAL | I78: N/A | J78: Microsoft®SfBServerEntCAL License/SoftwareAssurancePack Government OLP 1License NoLevel UsrCAL | K78: Unidad | L78: Und | M78: Producto | N78: N/A | O78: N/A | P78: N/A | Q78: 7AH-00420 | R78: Licencia | S78: 188.3741625 | T78: 1 | U78: 1
A79: Controles Empresariales S.A.S.Categoría 17AH-00421P8550 | B79: 7AH-00421P8550Categoría 1 | D79: Controles Empresariales S.A.S. | E79: 7AH-00421P8550 | F79: 1 | G79: SfB Server Ent CAL | H79: SfB Server Ent CAL | I79: N/A | J79: Microsoft®SfBServerEntCAL SoftwareAssurance Government OLP 1License NoLevel DvcCAL | K79: Unidad | L79: Und | M79: Producto | N79: N/A | O79: N/A | P79: N/A | Q79: 7AH-00421 | R79: Licencia | S79: 48.56133862 | T79: 1 | U79: 1
A80: Controles Empresariales S.A.S.Categoría 17AH-00422P8551 | B80: 7AH-00422P8551Categoría 1 | D80: Controles Empresariales S.A.S. | E80: 7AH-00422P8551 | F80: 1 | G80: SfB Server Ent CAL | H80: SfB Server Ent CAL | I80: N/A | J80: Microsoft®SfBServerEntCAL SoftwareAssurance Government OLP 1License NoLevel UsrCAL | K80: Unidad | L80: Und | M80: Producto | N80: N/A | O80: N/A | P80: N/A | Q80: 7AH-00422 | R80: Licencia | S80: 62.83037385 | T80: 1 | U80: 1
A81: Controles Empresariales S.A.S.Categoría 1fbf0328a-8b0f-47a6-9483-dc2b36183fceP7421 | B81: fbf0328a-8b0f-47a6-9483-dc2b36183fceP7421Categoría 1 | D81: Controles Empresariales S.A.S. | E81: fbf0328a-8b0f-47a6-9483-dc2b36183fceP7421 | F81: 1 | G81: Dynamics | H81: Dynamics | I81: N/A | J81: Dynamics 365 - Additional Database Storage (Qualified Offer) | K81: Unidad | L81: Und | M81: Producto | N81: N/A | O81: N/A | P81: N/A | Q81: fbf0328a-8b0f-47a6-9483-dc2b36183fce | R81: Suscripción Mensual | S81: 4.546186 | T81: 1 | U81: 0
A82: Controles Empresariales S.A.S.Categoría 17JQ-00314P8651 | B82: 7JQ-00314P8651Categoría 1 | D82: Controles Empresariales S.A.S. | E82: 7JQ-00314P8651 | F82: 1 | G82: SQL Svr Enterprise Core | H82: SQL Svr Enterprise Core | I82: N/A | J82: Microsoft®SQLSvrEnterpriseCore License/SoftwareAssurancePack Government OLP 2Licenses NoLevel CoreLic Qualified | K82: Unidad | L82: Und | M82: Producto | N82: N/A | O82: N/A | P82: N/A | Q82: 7JQ-00314 | R82: Licencia | S82: 18696.11693 | T82: 1 | U82: 1
A83: Controles Empresariales S.A.S.Categoría 17JQ-00315P8652 | B83: 7JQ-00315P8652Categoría 1 | D83: Controles Empresariales S.A.S. | E83: 7JQ-00315P8652 | F83: 1 | G83: SQL Svr Enterprise Core | H83: SQL Svr Enterprise Core | I83: N/A | J83: Microsoft®SQLSvrEnterpriseCore SoftwareAssurance Government OLP 2Licenses NoLevel CoreLic Qualified | K83: Unidad | L83: Und | M83: Producto | N83: N/A | O83: N/A | P83: N/A | Q83: 7JQ-00315 | R83: Licencia | S83: 6231.999928 | T83: 1 | U83: 1
A84: Controles Empresariales S.A.S.Categoría 17JQ-01300 | B84: 7JQ-01300Categoría 1 | D84: Controles Empresariales S.A.S. | E84: 7JQ-01300 | F84: 1 | G84: SQL Svr Enterprise Core | H84: SQL Svr Enterprise Core | I84: N/A | J84: Microsoft®SQLSvrEnterpriseCore 2017 Government OLP 2Licenses NoLevel CoreLic Qualified | K84: Unidad | L84: Und | M84: Producto | N84: N/A | O84: N/A | P84: N/A | Q84: 7JQ-01300 | R84: Licencia | S84: 13197.30031 | T84: 1 | U84: 1
A85: Controles Empresariales S.A.S.Categoría 17JT-00003P8314 | B85: 7JT-00003P8314Categoría 1 | D85: Controles Empresariales S.A.S. | E85: 7JT-00003P8314 | F85: 1 | G85: O365 Plan E1 Archiving | H85: O365 Plan E1 Archiving | I85: N/A | J85: Microsoft®O365PlanE1Archiving ShrdSvr MonthlySubscriptions-VolumeLicense Government OLP 1License NoLevel Qualified Annual | K85: Unidad | L85: Und | M85: Producto | N85: N/A | O85: N/A | P85: N/A | Q85: 7JT-00003 | R85: Suscripción Anual | S85: 108.9121706 | T85: 1 | U85: 0
A86: Controles Empresariales S.A.S.Categoría 17NQ-00266P8661 | B86: 7NQ-00266P8661Categoría 1 | D86: Controles Empresariales S.A.S. | E86: 7NQ-00266P8661 | F86: 1 | G86: SQL Svr Standard Core | H86: SQL Svr Standard Core | I86: N/A | J86: Microsoft®SQLSvrStandardCore License/SoftwareAssurancePack Government OLP 2Licenses NoLevel CoreLic Qualified | K86: Unidad | L86: Und | M86: Producto | N86: N/A | O86: N/A | P86: N/A | Q86: 7NQ-00266 | R86: Licencia | S86: 4874.830296 | T86: 1 | U86: 1
A87: Controles Empresariales S.A.S.Categoría 17NQ-00267P8662 | B87: 7NQ-00267P8662Categoría 1 | D87: Controles Empresariales S.A.S. | E87: 7NQ-00267P8662 | F87: 1 | G87: SQL Svr Standard Core | H87: SQL Svr Standard Core | I87: N/A | J87: Microsoft®SQLSvrStandardCore SoftwareAssurance Government OLP 2Licenses NoLevel CoreLic Qualified | K87: Unidad | L87: Und | M87: Producto | N87: N/A | O87: N/A | P87: N/A | Q87: 7NQ-00267 | R87: Licencia | S87: 1624.982378 | T87: 1 | U87: 1
A88: Controles Empresariales S.A.S.Categoría 17NQ-01183 | B88: 7NQ-01183Categoría 1 | D88: Controles Empresariales S.A.S. | E88: 7NQ-01183 | F88: 1 | G88: SQL Svr Standard Core | H88: SQL Svr Standard Core | I88: N/A | J88: Microsoft®SQLSvrStandardCore 2017 Government OLP 2Licenses NoLevel CoreLic Qualified | K88: Unidad | L88: Und | M88: Producto | N88: N/A | O88: N/A | P88: N/A | Q88: 7NQ-01183 | R88: Licencia | S88: 3441.01548 | T88: 1 | U88: 1
A89: Controles Empresariales S.A.S.Categoría 17NS-00006P8429 | B89: 7NS-00006P8429Categoría 1 | D89: Controles Empresariales S.A.S. | E89: 7NS-00006P8429 | F89: 1 | G89: Proj Online Professional Open | H89: Proj Online Professional Open | I89: N/A | J89: Microsoft®ProjOnlineProfessionalOpen ShrdSvr MonthlySubscriptions-VolumeLicense Government OLP 1License NoLevel Qualified Annual | K89: Unidad | L89: Und | M89: Producto | N89: N/A | O89: N/A | P89: N/A | Q89: 7NS-00006 | R89: Suscripción Anual | S89: 357.8947063 | T89: 1 | U89: 0
A90: Controles Empresariales S.A.S.Categoría 17U6-00006P8190 | B90: 7U6-00006P8190Categoría 1 | D90: Controles Empresariales S.A.S. | E90: 7U6-00006P8190 | F90: 1 | G90: Intune OPEN Add-On | H90: Intune OPEN Add-On | I90: N/A | J90: Microsoft®IntuneOPENAdd-On ShrdSvr MonthlySubscriptions-VolumeLicense Government OLP 1License NoLevel Qualified Annual | K90: Unidad | L90: Und | M90: Producto | N90: N/A | O90: N/A | P90: N/A | Q90: 7U6-00006 | R90: Suscripción Anual | S90: 47.71922819 | T90: 1 | U90: 0
A91: Controles Empresariales S.A.S.Categoría 17YC-00006P8422 | B91: 7YC-00006P8422Categoría 1 | D91: Controles Empresariales S.A.S. | E91: 7YC-00006P8422 | F91: 1 | G91: Proj Online Premium Open | H91: Proj Online Premium Open | I91: N/A | J91: Microsoft®ProjOnlinePremiumOpen ShrdSvr MonthlySubscriptions-VolumeLicense Government OLP 1License NoLevel Qualified Annual | K91: Unidad | L91: Und | M91: Producto | N91: N/A | O91: N/A | P91: N/A | Q91: 7YC-00006 | R91: Suscripción Anual | S91: 656.1403142 | T91: 1 | U91: 0
A92: Controles Empresariales S.A.S.Categoría 1810-04848P8629 | B92: 810-04848P8629Categoría 1 | D92: Controles Empresariales S.A.S. | E92: 810-04848P8629 | F92: 1 | G92: SQL Server Enterprise Edition | H92: SQL Server Enterprise Edition | I92: N/A | J92: Microsoft®SQLServerEnterpriseEdition SoftwareAssurance Government OLP 1License NoLevel | K92: Unidad | L92: Und | M92: Producto | N92: N/A | O92: N/A | P92: N/A | Q92: 810-04848 | R92: Licencia | S92: 3894.268905 | T92: 1 | U92: 1
A93: Controles Empresariales S.A.S.Categoría 11fd13474-75a5-4c9b-80a2-fd233c346879 | B93: 1fd13474-75a5-4c9b-80a2-fd233c346879Categoría 1 | D93: Controles Empresariales S.A.S. | E93: 1fd13474-75a5-4c9b-80a2-fd233c346879 | F93: 1 | G93: Dynamics | H93: Dynamics | I93: N/A | J93: Dynamics 365 Unified Operations - Activity From SA from AX Functional or Task (Qualified Offer) | K93: Unidad | L93: Und | M93: Producto | N93: N/A | O93: N/A | P93: N/A | Q93: 1fd13474-75a5-4c9b-80a2-fd233c346879 | R93: Suscripción mensual con pago anual | S93: 27.35294118 | T93: 1 | U93: 0
A94: Controles Empresariales S.A.S.Categoría 179c103c3-35e2-4e1f-81bb-aae69800a3ef | B94: 79c103c3-35e2-4e1f-81bb-aae69800a3efCategoría 1 | D94: Controles Empresariales S.A.S. | E94: 79c103c3-35e2-4e1f-81bb-aae69800a3ef | F94: 1 | G94: Dynamics | H94: Dynamics | I94: N/A | J94: Dynamics 365 for Retail | K94: Unidad | L94: Und | M94: Producto | N94: N/A | O94: N/A | P94: N/A | Q94: 79c103c3-35e2-4e1f-81bb-aae69800a3ef | R94: Suscripción mensual con pago anual | S94: 155 | T94: 1 | U94: 0
A95: Controles Empresariales S.A.S.Categoría 19EA-00229P9238 | B95: 9EA-00229P9238Categoría 1 | D95: Controles Empresariales S.A.S. | E95: 9EA-00229P9238 | F95: 1 | G95: Windows Server DC Core | H95: Windows Server DC Core | I95: N/A | J95: Microsoft®WindowsServerDCCore License/SoftwareAssurancePack Government OLP 16Licenses NoLevel CoreLic Qualified | K95: Unidad | L95: Und | M95: Producto | N95: N/A | O95: N/A | P95: N/A | Q95: 9EA-00229 | R95: Licencia | S95: 8338.339116 | T95: 1 | U95: 1
A96: Controles Empresariales S.A.S.Categoría 19EA-00230P9240 | B96: 9EA-00230P9240Categoría 1 | D96: Controles Empresariales S.A.S. | E96: 9EA-00230P9240 | F96: 1 | G96: Windows Server DC Core | H96: Windows Server DC Core | I96: N/A | J96: Microsoft®WindowsServerDCCore SoftwareAssurance Government OLP 16Licenses NoLevel CoreLic Qualified | K96: Unidad | L96: Und | M96: Producto | N96: N/A | O96: N/A | P96: N/A | Q96: 9EA-00230 | R96: Licencia | S96: 2779.485338 | T96: 1 | U96: 1
A97: Controles Empresariales S.A.S.Categoría 19EA-00232P9239 | B97: 9EA-00232P9239Categoría 1 | D97: Controles Empresariales S.A.S. | E97: 9EA-00232P9239 | F97: 1 | G97: Windows Server DC Core | H97: Windows Server DC Core | I97: N/A | J97: Microsoft®WindowsServerDCCore License/SoftwareAssurancePack Government OLP 2Licenses NoLevel CoreLic Qualified | K97: Unidad | L97: Und | M97: Producto | N97: N/A | O97: N/A | P97: N/A | Q97: 9EA-00232 | R97: Licencia | S97: 1042.85374 | T97: 1 | U97: 1
A98: Controles Empresariales S.A.S.Categoría 19EA-00233P9241 | B98: 9EA-00233P9241Categoría 1 | D98: Controles Empresariales S.A.S. | E98: 9EA-00233P9241 | F98: 1 | G98: Windows Server DC Core | H98: Windows Server DC Core | I98: N/A | J98: Microsoft®WindowsServerDCCore SoftwareAssurance Government OLP 2Licenses NoLevel CoreLic Qualified | K98: Unidad | L98: Und | M98: Producto | N98: N/A | O98: N/A | P98: N/A | Q98: 9EA-00233 | R98: Licencia | S98: 347.5321428 | T98: 1 | U98: 1
A99: Controles Empresariales S.A.S.Categoría 19EM-00225P9259 | B99: 9EM-00225P9259Categoría 1 | D99: Controles Empresariales S.A.S. | E99: 9EM-00225P9259 | F99: 1 | G99: Windows Server STD CORE | H99: Windows Server STD CORE | I99: N/A | J99: Microsoft®WindowsServerSTDCORE License/SoftwareAssurancePack Government OLP 16Licenses NoLevel CoreLic | K99: Unidad | L99: Und | M99: Producto | N99: N/A | O99: N/A | P99: N/A | Q99: 9EM-00225 | R99: Licencia | S99: 1167.391756 | T99: 1 | U99: 1
A100: Controles Empresariales S.A.S.Categoría 19EM-00226P9261 | B100: 9EM-00226P9261Categoría 1 | D100: Controles Empresariales S.A.S. | E100: 9EM-00226P9261 | F100: 1 | G100: Windows Server STD CORE | H100: Windows Server STD CORE | I100: N/A | J100: Microsoft®WindowsServerSTDCORE SoftwareAssurance Government OLP 16Licenses NoLevel CoreLic | K100: Unidad | L100: Und | M100: Producto | N100: N/A | O100: N/A | P100: N/A | Q100: 9EM-00226 | R100: Licencia | S100: 389.087623 | T100: 1 | U100: 1
A101: Controles Empresariales S.A.S.Categoría 19EM-00228P9260 | B101: 9EM-00228P9260Categoría 1 | D101: Controles Empresariales S.A.S. | E101: 9EM-00228P9260 | F101: 1 | G101: Windows Server STD CORE | H101: Windows Server STD CORE | I101: N/A | J101: Microsoft®WindowsServerSTDCORE License/SoftwareAssurancePack Government OLP 2Licenses NoLevel CoreLic | K101: Unidad | L101: Und | M101: Producto | N101: N/A | O101: N/A | P101: N/A | Q101: 9EM-00228 | R101: Licencia | S101: 147.7425946 | T101: 1 | U101: 1
A102: Controles Empresariales S.A.S.Categoría 19EM-00229P9262 | B102: 9EM-00229P9262Categoría 1 | D102: Controles Empresariales S.A.S. | E102: 9EM-00229P9262 | F102: 1 | G102: Windows Server STD CORE | H102: Windows Server STD CORE | I102: N/A | J102: Microsoft®WindowsServerSTDCORE SoftwareAssurance Government OLP 2Licenses NoLevel CoreLic | K102: Unidad | L102: Und | M102: Producto | N102: N/A | O102: N/A | P102: N/A | Q102: 9EM-00229 | R102: Licencia | S102: 49.28647894 | T102: 1 | U102: 1
A103: Controles Empresariales S.A.S.Categoría 19EN-00165P8826 | B103: 9EN-00165P8826Categoría 1 | D103: Controles Empresariales S.A.S. | E103: 9EN-00165P8826 | F103: 1 | G103: Sys Ctr Standard Core | H103: Sys Ctr Standard Core | I103: N/A | J103: Microsoft®SysCtrStandardCore License/SoftwareAssurancePack Government OLP 16Licenses NoLevel CoreLic Qualified | K103: Unidad | L103: Und | M103: Producto | N103: N/A | O103: N/A | P103: N/A | Q103: 9EN-00165 | R103: Licencia | S103: 1191.40345 | T103: 1 | U103: 1
A104: Controles Empresariales S.A.S.Categoría 19EN-00166P8828 | B104: 9EN-00166P8828Categoría 1 | D104: Controles Empresariales S.A.S. | E104: 9EN-00166P8828 | F104: 1 | G104: Sys Ctr Standard Core | H104: Sys Ctr Standard Core | I104: N/A | J104: Microsoft®SysCtrStandardCore SoftwareAssurance Government OLP 16Licenses NoLevel CoreLic Qualified | K104: Unidad | L104: Und | M104: Producto | N104: N/A | O104: N/A | P104: N/A | Q104: 9EN-00166 | R104: Licencia | S104: 397.0525333 | T104: 1 | U104: 1
A105: Controles Empresariales S.A.S.Categoría 19EN-00167P8827 | B105: 9EN-00167P8827Categoría 1 | D105: Controles Empresariales S.A.S. | E105: 9EN-00167P8827 | F105: 1 | G105: Sys Ctr Standard Core | H105: Sys Ctr Standard Core | I105: N/A | J105: Microsoft®SysCtrStandardCore License/SoftwareAssurancePack Government OLP 2Licenses NoLevel CoreLic Qualified | K105: Unidad | L105: Und | M105: Producto | N105: N/A | O105: N/A | P105: N/A | Q105: 9EN-00167 | R105: Licencia | S105: 148.8303132 | T105: 1 | U105: 1
A106: Controles Empresariales S.A.S.Categoría 19EN-00168P8829 | B106: 9EN-00168P8829Categoría 1 | D106: Controles Empresariales S.A.S. | E106: 9EN-00168P8829 | F106: 1 | G106: Sys Ctr Standard Core | H106: Sys Ctr Standard Core | I106: N/A | J106: Microsoft®SysCtrStandardCore SoftwareAssurance Government OLP 2Licenses NoLevel CoreLic Qualified | K106: Unidad | L106: Und | M106: Producto | N106: N/A | O106: N/A | P106: N/A | Q106: 9EN-00168 | R106: Licencia | S106: 49.56718029 | T106: 1 | U106: 1
A107: Controles Empresariales S.A.S.Categoría 19EP-00171P8741 | B107: 9EP-00171P8741Categoría 1 | D107: Controles Empresariales S.A.S. | E107: 9EP-00171P8741 | F107: 1 | G107: Sys Ctr DataCenter Core | H107: Sys Ctr DataCenter Core | I107: N/A | J107: Microsoft®SysCtrDataCenterCore License/SoftwareAssurancePack Government OLP 16Licenses NoLevel CoreLic Qualified | K107: Unidad | L107: Und | M107: Producto | N107: N/A | O107: N/A | P107: N/A | Q107: 9EP-00171 | R107: Licencia | S107: 3261.169492 | T107: 1 | U107: 1
A108: Controles Empresariales S.A.S.Categoría 19EP-00172P8743 | B108: 9EP-00172P8743Categoría 1 | D108: Controles Empresariales S.A.S. | E108: 9EP-00172P8743 | F108: 1 | G108: Sys Ctr DataCenter Core | H108: Sys Ctr DataCenter Core | I108: N/A | J108: Microsoft®SysCtrDataCenterCore SoftwareAssurance Government OLP 16Licenses NoLevel CoreLic Qualified | K108: Unidad | L108: Und | M108: Producto | N108: N/A | O108: N/A | P108: N/A | Q108: 9EP-00172 | R108: Licencia | S108: 1087.017451 | T108: 1 | U108: 1
A109: Controles Empresariales S.A.S.Categoría 19EP-00173P8742 | B109: 9EP-00173P8742Categoría 1 | D109: Controles Empresariales S.A.S. | E109: 9EP-00173P8742 | F109: 1 | G109: Sys Ctr DataCenter Core | H109: Sys Ctr DataCenter Core | I109: N/A | J109: Microsoft®SysCtrDataCenterCore License/SoftwareAssurancePack Government OLP 2Licenses NoLevel CoreLic Qualified | K109: Unidad | L109: Und | M109: Producto | N109: N/A | O109: N/A | P109: N/A | Q109: 9EP-00173 | R109: Licencia | S109: 407.5672179 | T109: 1 | U109: 1
A110: Controles Empresariales S.A.S.Categoría 19EP-00174P8744 | B110: 9EP-00174P8744Categoría 1 | D110: Controles Empresariales S.A.S. | E110: 9EP-00174P8744 | F110: 1 | G110: Sys Ctr DataCenter Core | H110: Sys Ctr DataCenter Core | I110: N/A | J110: Microsoft®SysCtrDataCenterCore SoftwareAssurance Government OLP 2Licenses NoLevel CoreLic Qualified | K110: Unidad | L110: Und | M110: Producto | N110: N/A | O110: N/A | P110: N/A | Q110: 9EP-00174 | R110: Licencia | S110: 135.812855 | T110: 1 | U110: 1
A111: Controles Empresariales S.A.S.Categoría 19GA-00056P8698 | B111: 9GA-00056P8698Categoría 1 | D111: Controles Empresariales S.A.S. | E111: 9GA-00056P8698 | F111: 1 | G111: Core Infra Svr Ste Std Core | H111: Core Infra Svr Ste Std Core | I111: N/A | J111: Microsoft®CoreInfraSvrSteStdCore License/SoftwareAssurancePack Government OLP 16Licenses NoLevel W/OSYSCTRSERVERLICENSE CoreLic Qualified | K111: Unidad | L111: Und | M111: Producto | N111: N/A | O111: N/A | P111: N/A | Q111: 9GA-00056 | R111: Licencia | S111: 1502.339163 | T111: 1 | U111: 1
A112: Controles Empresariales S.A.S.Categoría 19GA-00057P8701 | B112: 9GA-00057P8701Categoría 1 | D112: Controles Empresariales S.A.S. | E112: 9GA-00057P8701 | F112: 1 | G112: Core Infra Svr Ste Std Core | H112: Core Infra Svr Ste Std Core | I112: N/A | J112: Microsoft®CoreInfraSvrSteStdCore License/SoftwareAssurancePack Government OLP 2Licenses NoLevel W/OSYSCTRSERVERLICENSE CoreLic Qualified | K112: Unidad | L112: Und | M112: Producto | N112: N/A | O112: N/A | P112: N/A | Q112: 9GA-00057 | R112: Licencia | S112: 189.5203607 | T112: 1 | U112: 1
A113: Controles Empresariales S.A.S.Categoría 19GA-00292P8697 | B113: 9GA-00292P8697Categoría 1 | D113: Controles Empresariales S.A.S. | E113: 9GA-00292P8697 | F113: 1 | G113: Core Infra Svr Ste Std Core | H113: Core Infra Svr Ste Std Core | I113: N/A | J113: Microsoft®CoreInfraSvrSteStdCore License/SoftwareAssurancePack Government OLP 16Licenses NoLevel CoreLic Qualified | K113: Unidad | L113: Und | M113: Producto | N113: N/A | O113: N/A | P113: N/A | Q113: 9GA-00292 | R113: Licencia | S113: 2200.362488 | T113: 1 | U113: 1
A114: Controles Empresariales S.A.S.Categoría 19GA-00293P8703 | B114: 9GA-00293P8703Categoría 1 | D114: Controles Empresariales S.A.S. | E114: 9GA-00293P8703 | F114: 1 | G114: Core Infra Svr Ste Std Core | H114: Core Infra Svr Ste Std Core | I114: N/A | J114: Microsoft®CoreInfraSvrSteStdCore SoftwareAssurance Government OLP 16Licenses NoLevel CoreLic Qualified | K114: Unidad | L114: Und | M114: Producto | N114: N/A | O114: N/A | P114: N/A | Q114: 9GA-00293 | R114: Licencia | S114: 733.4151376 | T114: 1 | U114: 1
A115: Controles Empresariales S.A.S.Categoría 19GA-00294P8700 | B115: 9GA-00294P8700Categoría 1 | D115: Controles Empresariales S.A.S. | E115: 9GA-00294P8700 | F115: 1 | G115: Core Infra Svr Ste Std Core | H115: Core Infra Svr Ste Std Core | I115: N/A | J115: Microsoft®CoreInfraSvrSteStdCore License/SoftwareAssurancePack Government OLP 2Licenses NoLevel CoreLic Qualified | K115: Unidad | L115: Und | M115: Producto | N115: N/A | O115: N/A | P115: N/A | Q115: 9GA-00294 | R115: Licencia | S115: 276.7601358 | T115: 1 | U115: 1
A116: Controles Empresariales S.A.S.Categoría 19GA-00295P8704 | B116: 9GA-00295P8704Categoría 1 | D116: Controles Empresariales S.A.S. | E116: 9GA-00295P8704 | F116: 1 | G116: Core Infra Svr Ste Std Core | H116: Core Infra Svr Ste Std Core | I116: N/A | J116: Microsoft®CoreInfraSvrSteStdCore SoftwareAssurance Government OLP 2Licenses NoLevel CoreLic Qualified | K116: Unidad | L116: Und | M116: Producto | N116: N/A | O116: N/A | P116: N/A | Q116: 9GA-00295 | R116: Licencia | S116: 92.17532828 | T116: 1 | U116: 1
A117: Controles Empresariales S.A.S.Categoría 19GA-00601P8699 | B117: 9GA-00601P8699Categoría 1 | D117: Controles Empresariales S.A.S. | E117: 9GA-00601P8699 | F117: 1 | G117: Core Infra Svr Ste Std Core | H117: Core Infra Svr Ste Std Core | I117: N/A | J117: Microsoft®CoreInfraSvrSteStdCore License/SoftwareAssurancePack Government OLP 16Licenses NoLevel W/OWinServerLicense CoreLic Qualified | K117: Unidad | L117: Und | M117: Producto | N117: N/A | O117: N/A | P117: N/A | Q117: 9GA-00601 | R117: Licencia | S117: 1431.438579 | T117: 1 | U117: 1
A118: Controles Empresariales S.A.S.Categoría 19GA-00602P8702 | B118: 9GA-00602P8702Categoría 1 | D118: Controles Empresariales S.A.S. | E118: 9GA-00602P8702 | F118: 1 | G118: Core Infra Svr Ste Std Core | H118: Core Infra Svr Ste Std Core | I118: N/A | J118: Microsoft®CoreInfraSvrSteStdCore License/SoftwareAssurancePack Government OLP 2Licenses NoLevel W/OWinServerLicense CoreLic Qualified | K118: Unidad | L118: Und | M118: Producto | N118: N/A | O118: N/A | P118: N/A | Q118: 9GA-00602 | R118: Licencia | S118: 179.4151033 | T118: 1 | U118: 1
A119: Controles Empresariales S.A.S.Categoría 19GS-00110P8679 | B119: 9GS-00110P8679Categoría 1 | D119: Controles Empresariales S.A.S. | E119: 9GS-00110P8679 | F119: 1 | G119: Core Infrastructure Svr Ste DC Core | H119: Core Infrastructure Svr Ste DC Core | I119: N/A | J119: Microsoft®CoreInfrastructureSvrSteDCCore License/SoftwareAssurancePack Government OLP 16Licenses NoLevel CoreLic Qualified | K119: Unidad | L119: Und | M119: Producto | N119: N/A | O119: N/A | P119: N/A | Q119: 9GS-00110 | R119: Licencia | S119: 11028.92397 | T119: 1 | U119: 1
A120: Controles Empresariales S.A.S.Categoría 19GS-00111P8685 | B120: 9GS-00111P8685Categoría 1 | D120: Controles Empresariales S.A.S. | E120: 9GS-00111P8685 | F120: 1 | G120: Core Infrastructure Svr Ste DC Core | H120: Core Infrastructure Svr Ste DC Core | I120: N/A | J120: Microsoft®CoreInfrastructureSvrSteDCCore SoftwareAssurance Government OLP 16Licenses NoLevel CoreLic Qualified | K120: Unidad | L120: Und | M120: Producto | N120: N/A | O120: N/A | P120: N/A | Q120: 9GS-00111 | R120: Licencia | S120: 3676.304094 | T120: 1 | U120: 1
A121: Controles Empresariales S.A.S.Categoría 19GS-00112P8682 | B121: 9GS-00112P8682Categoría 1 | D121: Controles Empresariales S.A.S. | E121: 9GS-00112P8682 | F121: 1 | G121: Core Infrastructure Svr Ste DC Core | H121: Core Infrastructure Svr Ste DC Core | I121: N/A | J121: Microsoft®CoreInfrastructureSvrSteDCCore License/SoftwareAssurancePack Government OLP 2Licenses NoLevel CoreLic Qualified | K121: Unidad | L121: Und | M121: Producto | N121: N/A | O121: N/A | P121: N/A | Q121: 9GS-00112 | R121: Licencia | S121: 1379.28655 | T121: 1 | U121: 1
A122: Controles Empresariales S.A.S.Categoría 19GS-00113P8686 | B122: 9GS-00113P8686Categoría 1 | D122: Controles Empresariales S.A.S. | E122: 9GS-00113P8686 | F122: 1 | G122: Core Infrastructure Svr Ste DC Core | H122: Core Infrastructure Svr Ste DC Core | I122: N/A | J122: Microsoft®CoreInfrastructureSvrSteDCCore SoftwareAssurance Government OLP 2Licenses NoLevel CoreLic Qualified | K122: Unidad | L122: Und | M122: Producto | N122: N/A | O122: N/A | P122: N/A | Q122: 9GS-00113 | R122: Licencia | S122: 459.7660819 | T122: 1 | U122: 1
A123: Controles Empresariales S.A.S.Categoría 19GS-00545P8680 | B123: 9GS-00545P8680Categoría 1 | D123: Controles Empresariales S.A.S. | E123: 9GS-00545P8680 | F123: 1 | G123: Core Infrastructure Svr Ste DC Core | H123: Core Infrastructure Svr Ste DC Core | I123: N/A | J123: Microsoft®CoreInfrastructureSvrSteDCCore License/SoftwareAssurancePack Government OLP 16Licenses NoLevel W/OSYSCTRSERVERLICENSE CoreLic Qualified | K123: Unidad | L123: Und | M123: Producto | N123: N/A | O123: N/A | P123: N/A | Q123: 9GS-00545 | R123: Licencia | S123: 8963.567233 | T123: 1 | U123: 1
A124: =D124&"Categoría "&F124&E124 -> Controles Empresariales S.A.S.Categoría 19GS-00546P8683 | B124: =E124&"Categoría "&F124 -> 9GS-00546P8683Categoría 1 | D124: Controles Empresariales S.A.S. | E124: 9GS-00546P8683 | F124: 1 | G124: Core Infrastructure Svr Ste DC Core | H124: Core Infrastructure Svr Ste DC Core | I124: N/A | J124: Microsoft®CoreInfrastructureSvrSteDCCore License/SoftwareAssurancePack Government OLP 2Licenses NoLevel W/OSYSCTRSERVERLICENSE CoreLic Qualified | K124: Unidad | L124: Und | M124: Producto | N124: N/A | O124: N/A | P124: N/A | Q124: 9GS-00546 | R124: Licencia | S124: 1121.064325 | T124: 1 | U124: 1
A125: Controles Empresariales S.A.S.Categoría 19GS-00725P8681 | B125: 9GS-00725P8681Categoría 1 | D125: Controles Empresariales S.A.S. | E125: 9GS-00725P8681 | F125: 1 | G125: Core Infrastructure Svr Ste DC Core | H125: Core Infrastructure Svr Ste DC Core | I125: N/A | J125: Microsoft®CoreInfrastructureSvrSteDCCore License/SoftwareAssurancePack Government OLP 16Licenses NoLevel W/OWinServerLicense CoreLic Qualified | K125: Unidad | L125: Und | M125: Producto | N125: N/A | O125: N/A | P125: N/A | Q125: 9GS-00725 | R125: Licencia | S125: 5741.660714 | T125: 1 | U125: 1
A126: Controles Empresariales S.A.S.Categoría 19GS-00726P8684 | B126: 9GS-00726P8684Categoría 1 | D126: Controles Empresariales S.A.S. | E126: 9GS-00726P8684 | F126: 1 | G126: Core Infrastructure Svr Ste DC Core | H126: Core Infrastructure Svr Ste DC Core | I126: N/A | J126: Microsoft®CoreInfrastructureSvrSteDCCore License/SoftwareAssurancePack Government OLP 2Licenses NoLevel W/OWinServerLicense CoreLic Qualified | K126: Unidad | L126: Und | M126: Producto | N126: N/A | O126: N/A | P126: N/A | Q126: 9GS-00726 | R126: Licencia | S126: 717.9764906 | T126: 1 | U126: 1
A127: Controles Empresariales S.A.S.Categoría 19TX-00209P8781 | B127: 9TX-00209P8781Categoría 1 | D127: Controles Empresariales S.A.S. | E127: 9TX-00209P8781 | F127: 1 | G127: Sys Ctr Ops Mgr Clt Mgmt Lic | H127: Sys Ctr Ops Mgr Clt Mgmt Lic | I127: N/A | J127: Microsoft®SysCtrOpsMgrCltMgmtLic License/SoftwareAssurancePack Government OLP 1License NoLevel PerUsr | K127: Unidad | L127: Und | M127: Producto | N127: N/A | O127: N/A | P127: N/A | Q127: 9TX-00209 | R127: Licencia | S127: 31.94143577 | T127: 1 | U127: 1
A128: Controles Empresariales S.A.S.Categoría 19TX-00226P8783 | B128: 9TX-00226P8783Categoría 1 | D128: Controles Empresariales S.A.S. | E128: 9TX-00226P8783 | F128: 1 | G128: Sys Ctr Ops Mgr Clt Mgmt Lic | H128: Sys Ctr Ops Mgr Clt Mgmt Lic | I128: N/A | J128: Microsoft®SysCtrOpsMgrCltMgmtLic SoftwareAssurance Government OLP 1License NoLevel PerUsr | K128: Unidad | L128: Und | M128: Producto | N128: N/A | O128: N/A | P128: N/A | Q128: 9TX-00226 | R128: Licencia | S128: 10.60812083 | T128: 1 | U128: 1
A129: Controles Empresariales S.A.S.Categoría 19TX-00605P8782 | B129: 9TX-00605P8782Categoría 1 | D129: Controles Empresariales S.A.S. | E129: 9TX-00605P8782 | F129: 1 | G129: Sys Ctr Ops Mgr Clt Mgmt Lic | H129: Sys Ctr Ops Mgr Clt Mgmt Lic | I129: N/A | J129: Microsoft®SysCtrOpsMgrCltMgmtLic SoftwareAssurance Government OLP 1License NoLevel PerOSE | K129: Unidad | L129: Und | M129: Producto | N129: N/A | O129: N/A | P129: N/A | Q129: 9TX-00605 | R129: Licencia | S129: 8.1403 | T129: 1 | U129: 1
A130: Controles Empresariales S.A.S.Categoría 19TX-00606P8780 | B130: 9TX-00606P8780Categoría 1 | D130: Controles Empresariales S.A.S. | E130: 9TX-00606P8780 | F130: 1 | G130: Sys Ctr Ops Mgr Clt Mgmt Lic | H130: Sys Ctr Ops Mgr Clt Mgmt Lic | I130: N/A | J130: Microsoft®SysCtrOpsMgrCltMgmtLic License/SoftwareAssurancePack Government OLP 1License NoLevel PerOSE | K130: Unidad | L130: Und | M130: Producto | N130: N/A | O130: N/A | P130: N/A | Q130: 9TX-00606 | R130: Licencia | S130: 24.54961209 | T130: 1 | U130: 1
A131: Controles Empresariales S.A.S.Categoría 1CE4-00006P8996 | B131: CE4-00006P8996Categoría 1 | D131: Controles Empresariales S.A.S. | E131: CE4-00006P8996 | F131: 1 | G131: Ent Mob and Security E5 Open Add-on | H131: Ent Mob and Security E5 Open Add-on | I131: N/A | J131: Microsoft®EntMobandSecurityE5OpenAdd-on ShrdSvr MonthlySubscriptions-VolumeLicense Government OLP 1License NoLevel AddOn Qualified Annual | K131: Unidad | L131: Und | M131: Producto | N131: N/A | O131: N/A | P131: N/A | Q131: CE4-00006 | R131: Suscripción Anual | S131: 136.421 | T131: 1 | U131: 0
A132: Controles Empresariales S.A.S.Categoría 1CF3-00007P8992 | B132: CF3-00007P8992Categoría 1 | D132: Controles Empresariales S.A.S. | E132: CF3-00007P8992 | F132: 1 | G132: Ent Mob and Security E5 Open | H132: Ent Mob and Security E5 Open | I132: N/A | J132: Microsoft®EntMobandSecurityE5Open ShrdSvr MonthlySubscriptions-VolumeLicense Government OLP 1License NoLevel Qualified Annual | K132: Unidad | L132: Und | M132: Producto | N132: N/A | O132: N/A | P132: N/A | Q132: CF3-00007 | R132: Suscripción Anual | S132: 176.5613815 | T132: 1 | U132: 0
A133: Controles Empresariales S.A.S.Categoría 1D75-01971P7355 | B133: D75-01971P7355Categoría 1 | D133: Controles Empresariales S.A.S. | E133: D75-01971P7355 | F133: 1 | G133: BizTalk Server Standard | H133: BizTalk Server Standard | I133: N/A | J133: Microsoft®BizTalk®ServerStandard License/SoftwareAssurancePack Government OLP 2Licenses NoLevel CoreLic Qualified | K133: Unidad | L133: Und | M133: Producto | N133: N/A | O133: N/A | P133: N/A | Q133: D75-01971 | R133: Licencia | S133: 6892.853795 | T133: 1 | U133: 1
A134: Controles Empresariales S.A.S.Categoría 1D75-01972P7356 | B134: D75-01972P7356Categoría 1 | D134: Controles Empresariales S.A.S. | E134: D75-01972P7356 | F134: 1 | G134: BizTalk Server Standard | H134: BizTalk Server Standard | I134: N/A | J134: Microsoft®BizTalk®ServerStandard SoftwareAssurance Government OLP 2Licenses NoLevel CoreLic Qualified | K134: Unidad | L134: Und | M134: Producto | N134: N/A | O134: N/A | P134: N/A | Q134: D75-01972 | R134: Licencia | S134: 2297.660737 | T134: 1 | U134: 1
A135: Controles Empresariales S.A.S.Categoría 1D75-02372P7348 | B135: D75-02372P7348Categoría 1 | D135: Controles Empresariales S.A.S. | E135: D75-02372P7348 | F135: 1 | G135: BizTalk Server Standard | H135: BizTalk Server Standard | I135: N/A | J135: Microsoft®BizTalk®ServerStandard 2016 Government OLP 2Licenses NoLevel CoreLic Qualified | K135: Unidad | L135: Und | M135: Producto | N135: N/A | O135: N/A | P135: N/A | Q135: D75-02372 | R135: Licencia | S135: 4595.192938 | T135: 1 | U135: 1
A136: Controles Empresariales S.A.S.Categoría 1D86-02331P8851 | B136: D86-02331P8851Categoría 1 | D136: Controles Empresariales S.A.S. | E136: D86-02331P8851 | F136: 1 | G136: Visio Standard | H136: Visio Standard | I136: N/A | J136: Microsoft®Visio®Standard License/SoftwareAssurancePack Government OLP 1License NoLevel | K136: Unidad | L136: Und | M136: Producto | N136: N/A | O136: N/A | P136: N/A | Q136: D86-02331 | R136: Licencia | S136: 356.1753672 | T136: 1 | U136: 1
A137: Controles Empresariales S.A.S.Categoría 1D86-02333P8852 | B137: D86-02333P8852Categoría 1 | D137: Controles Empresariales S.A.S. | E137: D86-02333P8852 | F137: 1 | G137: Visio Standard | H137: Visio Standard | I137: N/A | J137: Microsoft®Visio®Standard SoftwareAssurance Government OLP 1License NoLevel | K137: Unidad | L137: Und | M137: Producto | N137: N/A | O137: N/A | P137: N/A | Q137: D86-02333 | R137: Licencia | S137: 130.7601352 | T137: 1 | U137: 1
A138: Controles Empresariales S.A.S.Categoría 1D87-02285P8848 | B138: D87-02285P8848Categoría 1 | D138: Controles Empresariales S.A.S. | E138: D87-02285P8848 | F138: 1 | G138: Visio Professional | H138: Visio Professional | I138: N/A | J138: Microsoft®Visio®Professional License/SoftwareAssurancePack Government OLP 1License NoLevel | K138: Unidad | L138: Und | M138: Producto | N138: N/A | O138: N/A | P138: N/A | Q138: D87-02285 | R138: Licencia | S138: 689.1227545 | T138: 1 | U138: 1
A139: Controles Empresariales S.A.S.Categoría 1D87-02286P8849 | B139: D87-02286P8849Categoría 1 | D139: Controles Empresariales S.A.S. | E139: D87-02286P8849 | F139: 1 | G139: Visio Professional | H139: Visio Professional | I139: N/A | J139: Microsoft®Visio®Professional SoftwareAssurance Government OLP 1License NoLevel | K139: Unidad | L139: Und | M139: Producto | N139: N/A | O139: N/A | P139: N/A | Q139: D87-02286 | R139: Licencia | S139: 253.0292166 | T139: 1 | U139: 1
A140: Controles Empresariales S.A.S.Categoría 12bcf9fe8-8b65-4fcf-9240-419203fb8cf4P7425 | B140: 2bcf9fe8-8b65-4fcf-9240-419203fb8cf4P7425Categoría 1 | D140: Controles Empresariales S.A.S. | E140: 2bcf9fe8-8b65-4fcf-9240-419203fb8cf4P7425 | F140: 1 | G140: Dynamics | H140: Dynamics | I140: N/A | J140: Dynamics 365 - Additional Production Instance (Qualified Offer) | K140: Unidad | L140: Und | M140: Producto | N140: N/A | O140: N/A | P140: N/A | Q140: 2bcf9fe8-8b65-4fcf-9240-419203fb8cf4 | R140: Suscripción Mensual | S140: 498.022186 | T140: 1 | U140: 0
A141: Controles Empresariales S.A.S.Categoría 1DW6-00006P8366 | B141: DW6-00006P8366Categoría 1 | D141: Controles Empresariales S.A.S. | E141: DW6-00006P8366 | F141: 1 | G141: Power BI Pro Open | H141: Power BI Pro Open | I141: N/A | J141: Microsoft®PowerBIProOpen ShrdSvr MonthlySubscriptions-VolumeLicense Government OLP 1License NoLevel Qualified Annual | K141: Unidad | L141: Und | M141: Producto | N141: N/A | O141: N/A | P141: N/A | Q141: DW6-00006 | R141: Suscripción Anual | S141: 119.1577819 | T141: 1 | U141: 0
A142: Controles Empresariales S.A.S.Categoría 15b2900bc-5067-4c17-99be-1560a8e8e6a1 | B142: 5b2900bc-5067-4c17-99be-1560a8e8e6a1Categoría 1 | D142: Controles Empresariales S.A.S. | E142: 5b2900bc-5067-4c17-99be-1560a8e8e6a1 | F142: 1 | G142: Dynamics | H142: Dynamics | I142: N/A | J142: Dynamics 365 for Talent | K142: Unidad | L142: Und | M142: Producto | N142: N/A | O142: N/A | P142: N/A | Q142: 5b2900bc-5067-4c17-99be-1560a8e8e6a1 | R142: Suscripción mensual con pago anual | S142: 36.47058824 | T142: 1 | U142: 0
A143: Controles Empresariales S.A.S.Categoría 1EMJ-00129P8044 | B143: EMJ-00129P8044Categoría 1 | D143: Controles Empresariales S.A.S. | E143: EMJ-00129P8044 | F143: 1 | G143: Dyn365 For Team Members | H143: Dyn365 For Team Members | I143: N/A | J143: Microsoft®Dyn365ForTeamMembers License/SoftwareAssurancePack Government OLP 1License NoLevel DvcCAL Qualified | K143: Unidad | L143: Und | M143: Producto | N143: N/A | O143: N/A | P143: N/A | Q143: EMJ-00129 | R143: Licencia | S143: 265.4150979 | T143: 1 | U143: 0
A144: Controles Empresariales S.A.S.Categoría 1EMJ-00130P8046 | B144: EMJ-00130P8046Categoría 1 | D144: Controles Empresariales S.A.S. | E144: EMJ-00130P8046 | F144: 1 | G144: Dyn365 For Team Members | H144: Dyn365 For Team Members | I144: N/A | J144: Microsoft®Dyn365ForTeamMembers License/SoftwareAssurancePack Government OLP 1License NoLevel UsrCAL Qualified | K144: Unidad | L144: Und | M144: Producto | N144: N/A | O144: N/A | P144: N/A | Q144: EMJ-00130 | R144: Licencia | S144: 176.8537698 | T144: 1 | U144: 0
A145: Controles Empresariales S.A.S.Categoría 1EMJ-00131P8047 | B145: EMJ-00131P8047Categoría 1 | D145: Controles Empresariales S.A.S. | E145: EMJ-00131P8047 | F145: 1 | G145: Dyn365 For Team Members | H145: Dyn365 For Team Members | I145: N/A | J145: Microsoft®Dyn365ForTeamMembers SoftwareAssurance Government OLP 1License NoLevel DvcCAL Qualified | K145: Unidad | L145: Und | M145: Producto | N145: N/A | O145: N/A | P145: N/A | Q145: EMJ-00131 | R145: Licencia | S145: 88.43267317 | T145: 1 | U145: 0
A146: Controles Empresariales S.A.S.Categoría 1EMJ-00132P8049 | B146: EMJ-00132P8049Categoría 1 | D146: Controles Empresariales S.A.S. | E146: EMJ-00132P8049 | F146: 1 | G146: Dyn365 For Team Members | H146: Dyn365 For Team Members | I146: N/A | J146: Microsoft®Dyn365ForTeamMembers SoftwareAssurance Government OLP 1License NoLevel UsrCAL Qualified | K146: Unidad | L146: Und | M146: Producto | N146: N/A | O146: N/A | P146: N/A | Q146: EMJ-00132 | R146: Licencia | S146: 58.86548662 | T146: 1 | U146: 0
A147: Controles Empresariales S.A.S.Categoría 1EMJ-00498P8045 | B147: EMJ-00498P8045Categoría 1 | D147: Controles Empresariales S.A.S. | E147: EMJ-00498P8045 | F147: 1 | G147: Dyn365 For Team Members | H147: Dyn365 For Team Members | I147: N/A | J147: Microsoft®Dyn365ForTeamMembers License/SoftwareAssurancePack Government OLP 1License NoLevel QualifiedOffer UsrCAL fromCRMEssentials | K147: Unidad | L147: Und | M147: Producto | N147: N/A | O147: N/A | P147: N/A | Q147: EMJ-00498 | R147: Licencia | S147: 137.8712592 | T147: 1 | U147: 0
A148: Controles Empresariales S.A.S.Categoría 1EMJ-00499P8048 | B148: EMJ-00499P8048Categoría 1 | D148: Controles Empresariales S.A.S. | E148: EMJ-00499P8048 | F148: 1 | G148: Dyn365 For Team Members | H148: Dyn365 For Team Members | I148: N/A | J148: Microsoft®Dyn365ForTeamMembers SoftwareAssurance Government OLP 1License NoLevel QualifiedOffer UsrCAL fromCRMEssentials | K148: Unidad | L148: Und | M148: Producto | N148: N/A | O148: N/A | P148: N/A | Q148: EMJ-00499 | R148: Licencia | S148: 45.8712969 | T148: 1 | U148: 0
A149: Controles Empresariales S.A.S.Categoría 1EMT-00129P7978 | B149: EMT-00129P7978Categoría 1 | D149: Controles Empresariales S.A.S. | E149: EMT-00129P7978 | F149: 1 | G149: Dyn365 For Customer Service | H149: Dyn365 For Customer Service | I149: N/A | J149: Microsoft®Dyn365ForCustomerService License/SoftwareAssurancePack Government OLP 1License NoLevel DvcCAL Qualified | K149: Unidad | L149: Und | M149: Producto | N149: N/A | O149: N/A | P149: N/A | Q149: EMT-00129 | R149: Licencia | S149: 3328.210518 | T149: 1 | U149: 0
A150: Controles Empresariales S.A.S.Categoría 1EMT-00130P7981 | B150: EMT-00130P7981Categoría 1 | D150: Controles Empresariales S.A.S. | E150: EMT-00130P7981 | F150: 1 | G150: Dyn365 For Customer Service | H150: Dyn365 For Customer Service | I150: N/A | J150: Microsoft®Dyn365ForCustomerService License/SoftwareAssurancePack Government OLP 1License NoLevel UsrCAL Qualified | K150: Unidad | L150: Und | M150: Producto | N150: N/A | O150: N/A | P150: N/A | Q150: EMT-00130 | R150: Licencia | S150: 2218.970674 | T150: 1 | U150: 0
A151: Controles Empresariales S.A.S.Categoría 1EMT-00131P7982 | B151: EMT-00131P7982Categoría 1 | D151: Controles Empresariales S.A.S. | E151: EMT-00131P7982 | F151: 1 | G151: Dyn365 For Customer Service | H151: Dyn365 For Customer Service | I151: N/A | J151: Microsoft®Dyn365ForCustomerService SoftwareAssurance Government OLP 1License NoLevel DvcCAL Qualified | K151: Unidad | L151: Und | M151: Producto | N151: N/A | O151: N/A | P151: N/A | Q151: EMT-00131 | R151: Licencia | S151: 1109.356622 | T151: 1 | U151: 0
A152: Controles Empresariales S.A.S.Categoría 1EMT-00132P7986 | B152: EMT-00132P7986Categoría 1 | D152: Controles Empresariales S.A.S. | E152: EMT-00132P7986 | F152: 1 | G152: Dyn365 For Customer Service | H152: Dyn365 For Customer Service | I152: N/A | J152: Microsoft®Dyn365ForCustomerService SoftwareAssurance Government OLP 1License NoLevel UsrCAL Qualified | K152: Unidad | L152: Und | M152: Producto | N152: N/A | O152: N/A | P152: N/A | Q152: EMT-00132 | R152: Licencia | S152: 739.6607493 | T152: 1 | U152: 0
A153: Controles Empresariales S.A.S.Categoría 1EMT-00599P7985 | B153: EMT-00599P7985Categoría 1 | D153: Controles Empresariales S.A.S. | E153: EMT-00599P7985 | F153: 1 | G153: Dyn365 For Customer Service | H153: Dyn365 For Customer Service | I153: N/A | J153: Microsoft®Dyn365ForCustomerService SoftwareAssurance Government OLP 1License NoLevel QualifiedOffer UsrCAL fromCRMPro | K153: Unidad | L153: Und | M153: Producto | N153: N/A | O153: N/A | P153: N/A | Q153: EMT-00599 | R153: Licencia | S153: 443.8479364 | T153: 1 | U153: 0
A154: Controles Empresariales S.A.S.Categoría 1EMT-00638P7984 | B154: EMT-00638P7984Categoría 1 | D154: Controles Empresariales S.A.S. | E154: EMT-00638P7984 | F154: 1 | G154: Dyn365 For Customer Service | H154: Dyn365 For Customer Service | I154: N/A | J154: Microsoft®Dyn365ForCustomerService SoftwareAssurance Government OLP 1License NoLevel QualifiedOffer UsrCAL fromCRMBasic | K154: Unidad | L154: Und | M154: Producto | N154: N/A | O154: N/A | P154: N/A | Q154: EMT-00638 | R154: Licencia | S154: 273.5672199 | T154: 1 | U154: 0
A155: Controles Empresariales S.A.S.Categoría 1EMT-00685P7980 | B155: EMT-00685P7980Categoría 1 | D155: Controles Empresariales S.A.S. | E155: EMT-00685P7980 | F155: 1 | G155: Dyn365 For Customer Service | H155: Dyn365 For Customer Service | I155: N/A | J155: Microsoft®Dyn365ForCustomerService License/SoftwareAssurancePack Government OLP 1License NoLevel QualifiedOffer UsrCAL fromCRMPro | K155: Unidad | L155: Und | M155: Producto | N155: N/A | O155: N/A | P155: N/A | Q155: EMT-00685 | R155: Licencia | S155: 1331.415093 | T155: 1 | U155: 0
A156: Controles Empresariales S.A.S.Categoría 1EMT-00862P7979 | B156: EMT-00862P7979Categoría 1 | D156: Controles Empresariales S.A.S. | E156: EMT-00862P7979 | F156: 1 | G156: Dyn365 For Customer Service | H156: Dyn365 For Customer Service | I156: N/A | J156: Microsoft®Dyn365ForCustomerService License/SoftwareAssurancePack Government OLP 1License NoLevel QualifiedOffer UsrCAL fromCRMBasic | K156: Unidad | L156: Und | M156: Producto | N156: N/A | O156: N/A | P156: N/A | Q156: EMT-00862 | R156: Licencia | S156: 820.9589676 | T156: 1 | U156: 0
A157: Controles Empresariales S.A.S.Categoría 1ENJ-00129P8018 | B157: ENJ-00129P8018Categoría 1 | D157: Controles Empresariales S.A.S. | E157: ENJ-00129P8018 | F157: 1 | G157: Dyn365 For Sales | H157: Dyn365 For Sales | I157: N/A | J157: Microsoft®Dyn365ForSales License/SoftwareAssurancePack Government OLP 1License NoLevel DvcCAL Qualified | K157: Unidad | L157: Und | M157: Producto | N157: N/A | O157: N/A | P157: N/A | Q157: ENJ-00129 | R157: Licencia | S157: 3328.210518 | T157: 1 | U157: 0
A158: Controles Empresariales S.A.S.Categoría 1ENJ-00130P8021 | B158: ENJ-00130P8021Categoría 1 | D158: Controles Empresariales S.A.S. | E158: ENJ-00130P8021 | F158: 1 | G158: Dyn365 For Sales | H158: Dyn365 For Sales | I158: N/A | J158: Microsoft®Dyn365ForSales License/SoftwareAssurancePack Government OLP 1License NoLevel UsrCAL Qualified | K158: Unidad | L158: Und | M158: Producto | N158: N/A | O158: N/A | P158: N/A | Q158: ENJ-00130 | R158: Licencia | S158: 2218.970674 | T158: 1 | U158: 0
A159: Controles Empresariales S.A.S.Categoría 1ENJ-00131P8022 | B159: ENJ-00131P8022Categoría 1 | D159: Controles Empresariales S.A.S. | E159: ENJ-00131P8022 | F159: 1 | G159: Dyn365 For Sales | H159: Dyn365 For Sales | I159: N/A | J159: Microsoft®Dyn365ForSales SoftwareAssurance Government OLP 1License NoLevel DvcCAL Qualified | K159: Unidad | L159: Und | M159: Producto | N159: N/A | O159: N/A | P159: N/A | Q159: ENJ-00131 | R159: Licencia | S159: 1109.356622 | T159: 1 | U159: 0
A160: Controles Empresariales S.A.S.Categoría 1ENJ-00132P8026 | B160: ENJ-00132P8026Categoría 1 | D160: Controles Empresariales S.A.S. | E160: ENJ-00132P8026 | F160: 1 | G160: Dyn365 For Sales | H160: Dyn365 For Sales | I160: N/A | J160: Microsoft®Dyn365ForSales SoftwareAssurance Government OLP 1License NoLevel UsrCAL Qualified | K160: Unidad | L160: Und | M160: Producto | N160: N/A | O160: N/A | P160: N/A | Q160: ENJ-00132 | R160: Licencia | S160: 739.6607493 | T160: 1 | U160: 0
A161: Controles Empresariales S.A.S.Categoría 1ENJ-00750P8020 | B161: ENJ-00750P8020Categoría 1 | D161: Controles Empresariales S.A.S. | E161: ENJ-00750P8020 | F161: 1 | G161: Dyn365 For Sales | H161: Dyn365 For Sales | I161: N/A | J161: Microsoft®Dyn365ForSales License/SoftwareAssurancePack Government OLP 1License NoLevel QualifiedOffer UsrCAL fromCRMPro | K161: Unidad | L161: Und | M161: Producto | N161: N/A | O161: N/A | P161: N/A | Q161: ENJ-00750 | R161: Licencia | S161: 1331.415093 | T161: 1 | U161: 0
A162: Controles Empresariales S.A.S.Categoría 1ENJ-00751P8025 | B162: ENJ-00751P8025Categoría 1 | D162: Controles Empresariales S.A.S. | E162: ENJ-00751P8025 | F162: 1 | G162: Dyn365 For Sales | H162: Dyn365 For Sales | I162: N/A | J162: Microsoft®Dyn365ForSales SoftwareAssurance Government OLP 1License NoLevel QualifiedOffer UsrCAL fromCRMPro | K162: Unidad | L162: Und | M162: Producto | N162: N/A | O162: N/A | P162: N/A | Q162: ENJ-00751 | R162: Licencia | S162: 443.8479364 | T162: 1 | U162: 0
A163: Controles Empresariales S.A.S.Categoría 1ENJ-00808P8019 | B163: ENJ-00808P8019Categoría 1 | D163: Controles Empresariales S.A.S. | E163: ENJ-00808P8019 | F163: 1 | G163: Dyn365 For Sales | H163: Dyn365 For Sales | I163: N/A | J163: Microsoft®Dyn365ForSales License/SoftwareAssurancePack Government OLP 1License NoLevel QualifiedOffer UsrCAL fromCRMBasic | K163: Unidad | L163: Und | M163: Producto | N163: N/A | O163: N/A | P163: N/A | Q163: ENJ-00808 | R163: Licencia | S163: 820.9589676 | T163: 1 | U163: 0
A164: Controles Empresariales S.A.S.Categoría 1ENJ-00809P8024 | B164: ENJ-00809P8024Categoría 1 | D164: Controles Empresariales S.A.S. | E164: ENJ-00809P8024 | F164: 1 | G164: Dyn365 For Sales | H164: Dyn365 For Sales | I164: N/A | J164: Microsoft®Dyn365ForSales SoftwareAssurance Government OLP 1License NoLevel QualifiedOffer UsrCAL fromCRMBasic | K164: Unidad | L164: Und | M164: Producto | N164: N/A | O164: N/A | P164: N/A | Q164: ENJ-00809 | R164: Licencia | S164: 273.5672199 | T164: 1 | U164: 0
A165: Controles Empresariales S.A.S.Categoría 1F52-02136P7343 | B165: F52-02136P7343Categoría 1 | D165: Controles Empresariales S.A.S. | E165: F52-02136P7343 | F165: 1 | G165: BizTalk Server Enterprise | H165: BizTalk Server Enterprise | I165: N/A | J165: Microsoft®BizTalk®ServerEnterprise License/SoftwareAssurancePack Government OLP 2Licenses NoLevel CoreLic Qualified | K165: Unidad | L165: Und | M165: Producto | N165: N/A | O165: N/A | P165: N/A | Q165: F52-02136 | R165: Licencia | S165: 30073.32159 | T165: 1 | U165: 1
A166: Controles Empresariales S.A.S.Categoría 1F52-02137P7344 | B166: F52-02137P7344Categoría 1 | D166: Controles Empresariales S.A.S. | E166: F52-02137P7344 | F166: 1 | G166: BizTalk Server Enterprise | H166: BizTalk Server Enterprise | I166: N/A | J166: Microsoft®BizTalk®ServerEnterprise SoftwareAssurance Government OLP 2Licenses NoLevel CoreLic Qualified | K166: Unidad | L166: Und | M166: Producto | N166: N/A | O166: N/A | P166: N/A | Q166: F52-02137 | R166: Licencia | S166: 10024.47952 | T166: 1 | U166: 1
A167: Controles Empresariales S.A.S.Categoría 1F52-02655P7333 | B167: F52-02655P7333Categoría 1 | D167: Controles Empresariales S.A.S. | E167: F52-02655P7333 | F167: 1 | G167: BizTalk Server Enterprise | H167: BizTalk Server Enterprise | I167: N/A | J167: Microsoft®BizTalk®ServerEnterprise 2016 Government OLP 2Licenses NoLevel CoreLic Qualified | K167: Unidad | L167: Und | M167: Producto | N167: N/A | O167: N/A | P167: N/A | Q167: F52-02655 | R167: Licencia | S167: 20048.84208 | T167: 1 | U167: 1
A168: Controles Empresariales S.A.S.Categoría 13396e762-af96-42f1-bea4-5c97a1efa94fP7422 | B168: 3396e762-af96-42f1-bea4-5c97a1efa94fP7422Categoría 1 | D168: Controles Empresariales S.A.S. | E168: 3396e762-af96-42f1-bea4-5c97a1efa94fP7422 | F168: 1 | G168: Dynamics | H168: Dynamics | I168: N/A | J168: Dynamics 365 - Additional Non-Production Instance (Qualified Offer) | K168: Unidad | L168: Und | M168: Producto | N168: N/A | O168: N/A | P168: N/A | Q168: 3396e762-af96-42f1-bea4-5c97a1efa94f | R168: Suscripción Mensual | S168: 135.827794 | T168: 1 | U168: 0
A169: Controles Empresariales S.A.S.Categoría 11e8bbd2f-ad7e-4105-b140-66f475458bb8P7424 | B169: 1e8bbd2f-ad7e-4105-b140-66f475458bb8P7424Categoría 1 | D169: Controles Empresariales S.A.S. | E169: 1e8bbd2f-ad7e-4105-b140-66f475458bb8P7424 | F169: 1 | G169: Dynamics | H169: Dynamics | I169: N/A | J169: Dynamics 365 - Additional Portal Page Views | K169: Unidad | L169: Und | M169: Producto | N169: N/A | O169: N/A | P169: N/A | Q169: 1e8bbd2f-ad7e-4105-b140-66f475458bb8 | R169: Suscripción Mensual | S169: 45.279196 | T169: 1 | U169: 0
A170: Controles Empresariales S.A.S.Categoría 1FQC-09478P9225 | B170: FQC-09478P9225Categoría 1 | D170: Controles Empresariales S.A.S. | E170: FQC-09478P9225 | F170: 1 | G170: Win Pro | H170: Win Pro | I170: N/A | J170: Microsoft®WindowsProfessional 10 Sngl OLP 1License NoLevel Legalization GetGenuine | K170: Unidad | L170: Und | M170: Producto | N170: N/A | O170: N/A | P170: N/A | Q170: FQC-09478 | R170: Licencia | S170: 195.2631 | T170: 1 | U170: 1
A171: Controles Empresariales S.A.S.Categoría 1FQC-09543P9226 | B171: FQC-09543P9226Categoría 1 | D171: Controles Empresariales S.A.S. | E171: FQC-09543P9226 | F171: 1 | G171: Win Pro | H171: Win Pro | I171: N/A | J171: Microsoft®WindowsProfessional 10 Upgrade Government OLP 1License NoLevel | K171: Unidad | L171: Und | M171: Producto | N171: N/A | O171: N/A | P171: N/A | Q171: FQC-09543 | R171: Licencia | S171: 169.0642288 | T171: 1 | U171: 1
A172: Controles Empresariales S.A.S.Categoría 1FTH-00006P8316 | B172: FTH-00006P8316Categoría 1 | D172: Controles Empresariales S.A.S. | E172: FTH-00006P8316 | F172: 1 | G172: O365 Adv Threat Protect Plan 2 Open | H172: O365 Adv Threat Protect Plan 2 Open | I172: N/A | J172: Microsoft®O365AdvThreatProtectPlan2Open ShrdSvr MonthlySubscriptions-VolumeLicense Government OLP 1License NoLevel Qualified Annual | K172: Unidad | L172: Und | M172: Producto | N172: N/A | O172: N/A | P172: N/A | Q172: FTH-00006 | R172: Suscripción Anual | S172: 95.01406207 | T172: 1 | U172: 0
A173: Controles Empresariales S.A.S.Categoría 1G3S-00505P9249 | B173: G3S-00505P9249Categoría 1 | D173: Controles Empresariales S.A.S. | E173: G3S-00505P9249 | F173: 1 | G173: Windows Server Essentials | H173: Windows Server Essentials | I173: N/A | J173: Microsoft®WindowsServerEssentials License/SoftwareAssurancePack Government OLP 1License NoLevel | K173: Unidad | L173: Und | M173: Producto | N173: N/A | O173: N/A | P173: N/A | Q173: G3S-00505 | R173: Licencia | S173: 679.3566747 | T173: 1 | U173: 1
A174: Controles Empresariales S.A.S.Categoría 1G3S-00506P9250 | B174: G3S-00506P9250Categoría 1 | D174: Controles Empresariales S.A.S. | E174: G3S-00506P9250 | F174: 1 | G174: Windows Server Essentials | H174: Windows Server Essentials | I174: N/A | J174: Microsoft®WindowsServerEssentials SoftwareAssurance Government OLP 1License NoLevel | K174: Unidad | L174: Und | M174: Producto | N174: N/A | O174: N/A | P174: N/A | Q174: G3S-00506 | R174: Licencia | S174: 226.40926 | T174: 1 | U174: 1
A175: Controles Empresariales S.A.S.Categoría 1GLX-00002P8052 | B175: GLX-00002P8052Categoría 1 | D175: Controles Empresariales S.A.S. | E175: GLX-00002P8052 | F175: 1 | G175: Dyn365 Pro Direct Support Open | H175: Dyn365 Pro Direct Support Open | I175: N/A | J175: Microsoft®Dyn365ProDirectSupportOpen ShrdSvr MonthlySubscriptions-VolumeLicense Government OLP 1License NoLevel PerUsr FORAPPS/CEPL/UNIOPSPL Annual | K175: Unidad | L175: Und | M175: Producto | N175: N/A | O175: N/A | P175: N/A | Q175: GLX-00002 | R175: Suscripción Anual | S175: 126.3156818 | T175: 1 | U175: 0
A176: Controles Empresariales S.A.S.Categoría 1GMG-00004P7642 | B176: GMG-00004P7642Categoría 1 | D176: Controles Empresariales S.A.S. | E176: GMG-00004P7642 | F176: 1 | G176: Dyn365E CstEng Addl DBStor Open | H176: Dyn365E CstEng Addl DBStor Open | I176: N/A | J176: Microsoft®Dyn365ECstEngAddlDBStorOpen ShrdSvr MonthlySubscriptions-VolumeLicense Government OLP 1License NoLevel AddOn ExtraStorage1GB Annual | K176: Unidad | L176: Und | M176: Producto | N176: N/A | O176: N/A | P176: N/A | Q176: GMG-00004 | R176: Suscripción Anual | S176: 70.17534091 | T176: 1 | U176: 0
A177: Controles Empresariales S.A.S.Categoría 1GMK-00004P7646 | B177: GMK-00004P7646Categoría 1 | D177: Controles Empresariales S.A.S. | E177: GMK-00004P7646 | F177: 1 | G177: Dyn365E CstEng Addl Portal Open | H177: Dyn365E CstEng Addl Portal Open | I177: N/A | J177: Microsoft®Dyn365ECstEngAddlPortalOpen ShrdSvr MonthlySubscriptions-VolumeLicense Government OLP 1License NoLevel AddOn Annual | K177: Unidad | L177: Und | M177: Producto | N177: N/A | O177: N/A | P177: N/A | Q177: GMK-00004 | R177: Suscripción Anual | S177: 7894.727273 | T177: 1 | U177: 0
A178: Controles Empresariales S.A.S.Categoría 1GMP-00004P7650 | B178: GMP-00004P7650Categoría 1 | D178: Controles Empresariales S.A.S. | E178: GMP-00004P7650 | F178: 1 | G178: Dyn365E CstEng Addl PtPgVw Open | H178: Dyn365E CstEng Addl PtPgVw Open | I178: N/A | J178: Microsoft®Dyn365ECstEngAddlPtPgVwOpen ShrdSvr MonthlySubscriptions-VolumeLicense Government OLP 1License NoLevel AddOn Annual | K178: Unidad | L178: Und | M178: Producto | N178: N/A | O178: N/A | P178: N/A | Q178: GMP-00004 | R178: Suscripción Anual | S178: 789.4659091 | T178: 1 | U178: 0
A179: Controles Empresariales S.A.S.Categoría 1GMS-00007P7751 | B179: GMS-00007P7751Categoría 1 | D179: Controles Empresariales S.A.S. | E179: GMS-00007P7751 | F179: 1 | G179: Dyn365E for Cust Serv AddOn Open | H179: Dyn365E for Cust Serv AddOn Open | I179: N/A | J179: Microsoft®Dyn365EforCustServAddOnOpen ShrdSvr MonthlySubscriptions-VolumeLicense Government OLP 1License NoLevel PerDvc Annual | K179: Unidad | L179: Und | M179: Producto | N179: N/A | O179: N/A | P179: N/A | Q179: GMS-00007 | R179: Suscripción Anual | S179: 2035.087614 | T179: 1 | U179: 0
A180: Controles Empresariales S.A.S.Categoría 1GMS-00008P7753 | B180: GMS-00008P7753Categoría 1 | D180: Controles Empresariales S.A.S. | E180: GMS-00008P7753 | F180: 1 | G180: Dyn365E for Cust Serv AddOn Open | H180: Dyn365E for Cust Serv AddOn Open | I180: N/A | J180: Microsoft®Dyn365EforCustServAddOnOpen ShrdSvr MonthlySubscriptions-VolumeLicense Government OLP 1License NoLevel PerUsr Annual | K180: Unidad | L180: Und | M180: Producto | N180: N/A | O180: N/A | P180: N/A | Q180: GMS-00008 | R180: Suscripción Anual | S180: 1333.333295 | T180: 1 | U180: 0
A181: =D181&"Categoría "&F181&E181 -> Controles Empresariales S.A.S.Categoría 1GMS-00020P7752 | B181: =E181&"Categoría "&F181 -> GMS-00020P7752Categoría 1 | D181: Controles Empresariales S.A.S. | E181: GMS-00020P7752 | F181: 1 | G181: Dyn365E for Cust Serv AddOn Open | H181: Dyn365E for Cust Serv AddOn Open | I181: N/A | J181: Microsoft®Dyn365EforCustServAddOnOpen ShrdSvr MonthlySubscriptions-VolumeLicense Government OLP 1License NoLevel PerDvc toCustService Annual | K181: Unidad | L181: Und | M181: Producto | N181: N/A | O181: N/A | P181: N/A | Q181: GMS-00020 | R181: Suscripción Anual | S181: 1120.842032 | T181: 1 | U181: 0
A182: Controles Empresariales S.A.S.Categoría 1GMS-00021P7754 | B182: GMS-00021P7754Categoría 1 | D182: Controles Empresariales S.A.S. | E182: GMS-00021P7754 | F182: 1 | G182: Dyn365E for Cust Serv AddOn Open | H182: Dyn365E for Cust Serv AddOn Open | I182: N/A | J182: Microsoft®Dyn365EforCustServAddOnOpen ShrdSvr MonthlySubscriptions-VolumeLicense Government OLP 1License NoLevel PerUsr toCustService Annual | K182: Unidad | L182: Und | M182: Producto | N182: N/A | O182: N/A | P182: N/A | Q182: GMS-00021 | R182: Suscripción Anual | S182: 727.2981878 | T182: 1 | U182: 0
A183: Controles Empresariales S.A.S.Categoría 1GMV-00012P7777 | B183: GMV-00012P7777Categoría 1 | D183: Controles Empresariales S.A.S. | E183: GMV-00012P7777 | F183: 1 | G183: Dyn365E for Cust Serv FromSA Open | H183: Dyn365E for Cust Serv FromSA Open | I183: N/A | J183: Microsoft®Dyn365EforCustServFromSAOpen ShrdSvr MonthlySubscriptions-VolumeLicense Government OLP 1License NoLevel PerDvc Annual | K183: Unidad | L183: Und | M183: Producto | N183: N/A | O183: N/A | P183: N/A | Q183: GMV-00012 | R183: Suscripción Anual | S183: 1729.824545 | T183: 1 | U183: 0
A184: Controles Empresariales S.A.S.Categoría 1GMV-00013P7778 | B184: GMV-00013P7778Categoría 1 | D184: Controles Empresariales S.A.S. | E184: GMV-00013P7778 | F184: 1 | G184: Dyn365E for Cust Serv FromSA Open | H184: Dyn365E for Cust Serv FromSA Open | I184: N/A | J184: Microsoft®Dyn365EforCustServFromSAOpen ShrdSvr MonthlySubscriptions-VolumeLicense Government OLP 1License NoLevel PerUsr Annual | K184: Unidad | L184: Und | M184: Producto | N184: N/A | O184: N/A | P184: N/A | Q184: GMV-00013 | R184: Suscripción Anual | S184: 1133.333295 | T184: 1 | U184: 0
A185: Controles Empresariales S.A.S.Categoría 1GMY-00007P7734 | B185: GMY-00007P7734Categoría 1 | D185: Controles Empresariales S.A.S. | E185: GMY-00007P7734 | F185: 1 | G185: Dyn365E for Customer Service Open | H185: Dyn365E for Customer Service Open | I185: N/A | J185: Microsoft®Dyn365EforCustomerServiceOpen ShrdSvr MonthlySubscriptions-VolumeLicense Government OLP 1License NoLevel PerDvc Annual | K185: Unidad | L185: Und | M185: Producto | N185: N/A | O185: N/A | P185: N/A | Q185: GMY-00007 | R185: Suscripción Anual | S185: 2035.087614 | T185: 1 | U185: 0
A186: Controles Empresariales S.A.S.Categoría 1GMY-00008P7735 | B186: GMY-00008P7735Categoría 1 | D186: Controles Empresariales S.A.S. | E186: GMY-00008P7735 | F186: 1 | G186: Dyn365E for Customer Service Open | H186: Dyn365E for Customer Service Open | I186: N/A | J186: Microsoft®Dyn365EforCustomerServiceOpen ShrdSvr MonthlySubscriptions-VolumeLicense Government OLP 1License NoLevel PerUsr Annual | K186: Unidad | L186: Und | M186: Producto | N186: N/A | O186: N/A | P186: N/A | Q186: GMY-00008 | R186: Suscripción Anual | S186: 1333.333295 | T186: 1 | U186: 0
A187: Controles Empresariales S.A.S.Categoría 1GMY-00014P7736 | B187: GMY-00014P7736Categoría 1 | D187: Controles Empresariales S.A.S. | E187: GMY-00014P7736 | F187: 1 | G187: Dyn365E for Customer Service Open | H187: Dyn365E for Customer Service Open | I187: N/A | J187: Microsoft®Dyn365EforCustomerServiceOpen ShrdSvr MonthlySubscriptions-VolumeLicense Government OLP 1Lic NL QualifiedOffer PerUsr CRMProtoO365 Annual | K187: Unidad | L187: Und | M187: Producto | N187: N/A | O187: N/A | P187: N/A | Q187: GMY-00014 | R187: Suscripción Anual | S187: 821.3333134 | T187: 1 | U187: 0
A188: Controles Empresariales S.A.S.Categoría 1GMY-00019P7737 | B188: GMY-00019P7737Categoría 1 | D188: Controles Empresariales S.A.S. | E188: GMY-00019P7737 | F188: 1 | G188: Dyn365E for Customer Service Open | H188: Dyn365E for Customer Service Open | I188: N/A | J188: Microsoft®Dyn365EforCustomerServiceOpen ShrdSvr MonthlySubscriptions-VolumeLicense Government OLP 1Lic NL QualifiedOffer PerUsr forCRMOLBasic Annual | K188: Unidad | L188: Und | M188: Producto | N188: N/A | O188: N/A | P188: N/A | Q188: GMY-00019 | R188: Suscripción Anual | S188: 701.7543182 | T188: 1 | U188: 0
A189: Controles Empresariales S.A.S.Categoría 1GMY-00024P7738 | B189: GMY-00024P7738Categoría 1 | D189: Controles Empresariales S.A.S. | E189: GMY-00024P7738 | F189: 1 | G189: Dyn365E for Customer Service Open | H189: Dyn365E for Customer Service Open | I189: N/A | J189: Microsoft®Dyn365EforCustomerServiceOpen ShrdSvr MonthlySubscriptions-VolumeLicense Government OLP 1Lic NL QualifiedOffer PerUsr forCRMOLPro Annual | K189: Unidad | L189: Und | M189: Producto | N189: N/A | O189: N/A | P189: N/A | Q189: GMY-00024 | R189: Suscripción Anual | S189: 1066.666591 | T189: 1 | U189: 0
A190: Controles Empresariales S.A.S.Categoría 1GNJ-00007P7798 | B190: GNJ-00007P7798Categoría 1 | D190: Controles Empresariales S.A.S. | E190: GNJ-00007P7798 | F190: 1 | G190: Dyn365E for Field Service Open | H190: Dyn365E for Field Service Open | I190: N/A | J190: Microsoft®Dyn365EforFieldServiceOpen ShrdSvr MonthlySubscriptions-VolumeLicense Government OLP 1License NoLevel PerDvc Annual | K190: Unidad | L190: Und | M190: Producto | N190: N/A | O190: N/A | P190: N/A | Q190: GNJ-00007 | R190: Suscripción Anual | S190: 2035.087614 | T190: 1 | U190: 0
A191: Controles Empresariales S.A.S.Categoría 1GNJ-00008P7799 | B191: GNJ-00008P7799Categoría 1 | D191: Controles Empresariales S.A.S. | E191: GNJ-00008P7799 | F191: 1 | G191: Dyn365E for Field Service Open | H191: Dyn365E for Field Service Open | I191: N/A | J191: Microsoft®Dyn365EforFieldServiceOpen ShrdSvr MonthlySubscriptions-VolumeLicense Government OLP 1License NoLevel PerUsr Annual | K191: Unidad | L191: Und | M191: Producto | N191: N/A | O191: N/A | P191: N/A | Q191: GNJ-00008 | R191: Suscripción Anual | S191: 1333.333295 | T191: 1 | U191: 0
A192: Controles Empresariales S.A.S.Categoría 1GNQ-00004P7818 | B192: GNQ-00004P7818Categoría 1 | D192: Controles Empresariales S.A.S. | E192: GNQ-00004P7818 | F192: 1 | G192: Dyn365E for Proj Serv Auto Open | H192: Dyn365E for Proj Serv Auto Open | I192: N/A | J192: Microsoft®Dyn365EforProjServAutoOpen ShrdSvr MonthlySubscriptions-VolumeLicense Government OLP 1License NoLevel PerUsr Annual | K192: Unidad | L192: Und | M192: Producto | N192: N/A | O192: N/A | P192: N/A | Q192: GNQ-00004 | R192: Suscripción Anual | S192: 1333.333295 | T192: 1 | U192: 0
A193: Controles Empresariales S.A.S.Categoría 1GNT-00007P7866 | B193: GNT-00007P7866Categoría 1 | D193: Controles Empresariales S.A.S. | E193: GNT-00007P7866 | F193: 1 | G193: Dyn365E for Sales Open | H193: Dyn365E for Sales Open | I193: N/A | J193: Microsoft®Dyn365EforSalesOpen ShrdSvr MonthlySubscriptions-VolumeLicense Government OLP 1License NoLevel PerDvc Annual | K193: Unidad | L193: Und | M193: Producto | N193: N/A | O193: N/A | P193: N/A | Q193: GNT-00007 | R193: Suscripción Anual | S193: 2035.087614 | T193: 1 | U193: 0
A194: Controles Empresariales S.A.S.Categoría 1GNT-00008P7867 | B194: GNT-00008P7867Categoría 1 | D194: Controles Empresariales S.A.S. | E194: GNT-00008P7867 | F194: 1 | G194: Dyn365E for Sales Open | H194: Dyn365E for Sales Open | I194: N/A | J194: Microsoft®Dyn365EforSalesOpen ShrdSvr MonthlySubscriptions-VolumeLicense Government OLP 1License NoLevel PerUsr Annual | K194: Unidad | L194: Und | M194: Producto | N194: N/A | O194: N/A | P194: N/A | Q194: GNT-00008 | R194: Suscripción Anual | S194: 1333.333295 | T194: 1 | U194: 0
A195: Controles Empresariales S.A.S.Categoría 1GNT-00011P7868 | B195: GNT-00011P7868Categoría 1 | D195: Controles Empresariales S.A.S. | E195: GNT-00011P7868 | F195: 1 | G195: Dyn365E for Sales Open | H195: Dyn365E for Sales Open | I195: N/A | J195: Microsoft®Dyn365EforSalesOpen ShrdSvr MonthlySubscriptions-VolumeLicense Government OLP 1License NoLevel QualifiedOffer PerUsr CRMProtoO365 Annual | K195: Unidad | L195: Und | M195: Producto | N195: N/A | O195: N/A | P195: N/A | Q195: GNT-00011 | R195: Suscripción Anual | S195: 821.3333134 | T195: 1 | U195: 0
A196: Controles Empresariales S.A.S.Categoría 1GNT-00015P7869 | B196: GNT-00015P7869Categoría 1 | D196: Controles Empresariales S.A.S. | E196: GNT-00015P7869 | F196: 1 | G196: Dyn365E for Sales Open | H196: Dyn365E for Sales Open | I196: N/A | J196: Microsoft®Dyn365EforSalesOpen ShrdSvr MonthlySubscriptions-VolumeLicense Government OLP 1License NoLevel QualifiedOffer PerUsr forCRMOLBasic Annual | K196: Unidad | L196: Und | M196: Producto | N196: N/A | O196: N/A | P196: N/A | Q196: GNT-00015 | R196: Suscripción Anual | S196: 701.7543182 | T196: 1 | U196: 0
A197: Controles Empresariales S.A.S.Categoría 1GNT-00020P7870 | B197: GNT-00020P7870Categoría 1 | D197: Controles Empresariales S.A.S. | E197: GNT-00020P7870 | F197: 1 | G197: Dyn365E for Sales Open | H197: Dyn365E for Sales Open | I197: N/A | J197: Microsoft®Dyn365EforSalesOpen ShrdSvr MonthlySubscriptions-VolumeLicense Government OLP 1License NoLevel QualifiedOffer PerUsr forCRMOLPro Annual | K197: Unidad | L197: Und | M197: Producto | N197: N/A | O197: N/A | P197: N/A | Q197: GNT-00020 | R197: Suscripción Anual | S197: 1066.666591 | T197: 1 | U197: 0
A198: Controles Empresariales S.A.S.Categoría 1GNW-00009P7831 | B198: GNW-00009P7831Categoría 1 | D198: Controles Empresariales S.A.S. | E198: GNW-00009P7831 | F198: 1 | G198: Dyn365E for Sales Add-On Open | H198: Dyn365E for Sales Add-On Open | I198: N/A | J198: Microsoft®Dyn365EforSalesAdd-OnOpen ShrdSvr MonthlySubscriptions-VolumeLicense Government OLP 1License NoLevel PerDvc Annual | K198: Unidad | L198: Und | M198: Producto | N198: N/A | O198: N/A | P198: N/A | Q198: GNW-00009 | R198: Suscripción Anual | S198: 2035.087614 | T198: 1 | U198: 0
A199: Controles Empresariales S.A.S.Categoría 1GNW-00010P7832 | B199: GNW-00010P7832Categoría 1 | D199: Controles Empresariales S.A.S. | E199: GNW-00010P7832 | F199: 1 | G199: Dyn365E for Sales Add-On Open | H199: Dyn365E for Sales Add-On Open | I199: N/A | J199: Microsoft®Dyn365EforSalesAdd-OnOpen ShrdSvr MonthlySubscriptions-VolumeLicense Government OLP 1License NoLevel PerUsr Annual | K199: Unidad | L199: Und | M199: Producto | N199: N/A | O199: N/A | P199: N/A | Q199: GNW-00010 | R199: Suscripción Anual | S199: 1333.333295 | T199: 1 | U199: 0
A200: Controles Empresariales S.A.S.Categoría 1GNZ-00012P7854 | B200: GNZ-00012P7854Categoría 1 | D200: Controles Empresariales S.A.S. | E200: GNZ-00012P7854 | F200: 1 | G200: Dyn365E for Sales FromSA Open | H200: Dyn365E for Sales FromSA Open | I200: N/A | J200: Microsoft®Dyn365EforSalesFromSAOpen ShrdSvr MonthlySubscriptions-VolumeLicense Government OLP 1License NoLevel PerDvc Annual | K200: Unidad | L200: Und | M200: Producto | N200: N/A | O200: N/A | P200: N/A | Q200: GNZ-00012 | R200: Suscripción Anual | S200: 1729.824545 | T200: 1 | U200: 0
... 4300 more rows

Sheet ProXCat (hidden)
A3: Etiquetas de fila
A4: 1
A5: Controles Empresariales S.A.S.
A6: The Best Experience in Technology S.A
A7: UT Soft-IG
A8: UT Soluciones Microsoft 2017
A9: Total 1
A10: 2
A11: Controles Empresariales S.A.S.
A12: Dell Colombia INC
A13: The Best Experience in Technology S.A
A14: UT Soft-IG
A15: UT Soluciones Microsoft 2017
A16: Total 2
A17: 3
A18: Controles Empresariales S.A.S.
A19: UT Soft-IG
A20: UT Soluciones Microsoft 2017
A21: Total 3
A22: 4
A23: Controles Empresariales S.A.S.
A24: UT Soft-IG
A25: Total 4
A26: 5
A27: Controles Empresariales S.A.S.
A28: UT Soft-IG
A29: Vision Software S.A.S.
A30: Total 5
A31: 6
A32: Controles Empresariales S.A.S.
A33: The Best Experience in Technology S.A
A34: UT Soft-IG
A35: UT Soluciones Microsoft 2017
A36: Total 6
A37: 7
A38: Controles Empresariales S.A.S.
A39: The Best Experience in Technology S.A
A40: UT Soft-IG
A41: UT Soluciones Microsoft 2017
A42: Vision Software S.A.S.
A43: Total 7
A44: Total general

Sheet Cuadro Totales (hidden)
A1: Precio Unitario | B1: Precio Unitario + Gravamen | C1: Subtotal | D1: IVA | E1: Precio Total
D3: Valor Total | E3: =SUM(E2) -> 0
A8: Precio Unitario | B8: Precio Unitario + Gravamen | C8: Descuento adicional | D8: Precio con Descuento | E8: Subtotal | F8: IVA | G8: Precio Total
F10: Valor Total | G10: =SUM(G9) -> 0
A13: Servicios Azure
A14: Subtotal | B14: IVA | C14: Precio Total

Sheet Listas (hidden)
A1: Categoria | B1: Zona | C1: Marca | D1: ProductoInicial | E1: Producto | F1: Proveedores
A2: Categoría 1 | D2: 021-07160P8327 | F2: Controles Empresariales S.A.S.
A3: Categoría 2 | D3: 021-07161P8328 | F3: Dell Colombia INC
A4: Categoría 3 | D4: ea1938b1-6307-4749-ac97-37df8ab660ef | F4: The Best Experience in Technology S.A
A5: Categoría 4 | D5: c506d0f3-83c5-4939-971a-1270a48480e9 | F5: UT Soft-IG
A6: Categoría 5 | D6: 076-03299P8375 | F6: UT Soluciones Microsoft 2017
A7: Categoría 6 | D7: 076-03300P8376
A8: Categoría 7 | D8: 077-03412P2
D9: 077-03413P3
D10: 125-00162P8875
D11: 125-00181P8876
D12: 126-00257P8868
D13: 126-00260P8869
D14: 126-00295P8870
D15: 126-00298P8871
D16: 771c2453-e28a-47ff-ad72-5e32696f2435
D17: 228-04510P8639
D18: 228-04513P8638
D19: 228-11151
D20: 269-08812P8342
D21: 269-08814P8343
D22: f28514f0-6516-4ef9-8222-1c605a05d245
D23: 29a03361-6ac6-4165-9b7f-c714e7ed6258
D24: 312-02971P8129
D25: 312-02972P8128
D26: 359-01384P8626
D27: 359-01385P8625
D28: 359-01386P8624
D29: 359-01387P8623
D30: 359-06588
D31: 359-06589
D32: 381-02587P8147
D33: 381-02588P8146
D34: 381-02590P8144
D35: 381-02592P8145
D36: 395-03180P8119
D37: 395-03181P8120
D38: 3ND-00436P8812
D39: 3ND-00437P8813
D40: 3ND-00438P8814
D41: 3ND-00439P8815
D42: 3NN-00024P8361
D43: 3PP-00006P8415
D44: 3VU-00089P8202
D45: 3VU-00090P8203
D46: 3YF-00123P8336
D47: 3YF-00124P8337
D48: 3ZK-00165P8796
D49: 3ZK-00166P8797
D50: 3ZK-00167P8798
D51: 3ZK-00168P8799
D52: 5A5-00006P8276
D53: 5A9-00006P8071
D54: 5HK-00288P8200
D55: 5HK-00289P8201
D56: 5HK-00290P8199
D57: 5HU-00285P8532
D58: 5HU-00286P8533
D59: 6VC-01217P9015
D60: 6VC-01218P9016
D61: 6VC-01219P9017
D62: 6VC-01220P9018
D63: 6XC-00281P9026
D64: 6XC-00282P9027
D65: 6YH-00528P8603
D66: 6YH-00529P8604
D67: 6ZH-00350P8591
D68: 6ZH-00371P8592
D69: 6ZH-00372P8593
D70: 6ZH-00373P8594
D71: 76N-00597P8484
D72: 76N-00603P8485
D73: 76N-00654P8486
D74: 76N-00660P8487
D75: 77D-00105P8895
D76: 77D-00106P8896
D77: 7AH-00419P8548
D78: 7AH-00420P8549
D79: 7AH-00421P8550
D80: 7AH-00422P8551
D81: fbf0328a-8b0f-47a6-9483-dc2b36183fceP7421
D82: 7JQ-00314P8651
D83: 7JQ-00315P8652
D84: 7JQ-01300
D85: 7JT-00003P8314
D86: 7NQ-00266P8661
D87: 7NQ-00267P8662
D88: 7NQ-01183
D89: 7NS-00006P8429
D90: 7U6-00006P8190
D91: 7YC-00006P8422
D92: 810-04848P8629
D93: 1fd13474-75a5-4c9b-80a2-fd233c346879
D94: 79c103c3-35e2-4e1f-81bb-aae69800a3ef
D95: 9EA-00229P9238
D96: 9EA-00230P9240
D97: 9EA-00232P9239
D98: 9EA-00233P9241
D99: 9EM-00225P9259
D100: 9EM-00226P9261
D101: 9EM-00228P9260
D102: 9EM-00229P9262
D103: 9EN-00165P8826
D104: 9EN-00166P8828
D105: 9EN-00167P8827
D106: 9EN-00168P8829
D107: 9EP-00171P8741
D108: 9EP-00172P8743
D109: 9EP-00173P8742
D110: 9EP-00174P8744
D111: 9GA-00056P8698
D112: 9GA-00057P8701
D113: 9GA-00292P8697
D114: 9GA-00293P8703
D115: 9GA-00294P8700
D116: 9GA-00295P8704
D117: 9GA-00601P8699
D118: 9GA-00602P8702
D119: 9GS-00110P8679
D120: 9GS-00111P8685
D121: 9GS-00112P8682
D122: 9GS-00113P8686
D123: 9GS-00545P8680
D124: 9GS-00546P8683
D125: 9GS-00725P8681
D126: 9GS-00726P8684
D127: 9TX-00209P8781
D128: 9TX-00226P8783
D129: 9TX-00605P8782
D130: 9TX-00606P8780
D131: CE4-00006P8996
D132: CF3-00007P8992
D133: D75-01971P7355
D134: D75-01972P7356
D135: D75-02372P7348
D136: D86-02331P8851
D137: D86-02333P8852
D138: D87-02285P8848
D139: D87-02286P8849
D140: 2bcf9fe8-8b65-4fcf-9240-419203fb8cf4P7425
D141: DW6-00006P8366
D142: 5b2900bc-5067-4c17-99be-1560a8e8e6a1
D143: EMJ-00129P8044
D144: EMJ-00130P8046
D145: EMJ-00131P8047
D146: EMJ-00132P8049
D147: EMJ-00498P8045
D148: EMJ-00499P8048
D149: EMT-00129P7978
D150: EMT-00130P7981
D151: EMT-00131P7982
D152: EMT-00132P7986
D153: EMT-00599P7985
D154: EMT-00638P7984
D155: EMT-00685P7980
D156: EMT-00862P7979
D157: ENJ-00129P8018
D158: ENJ-00130P8021
D159: ENJ-00131P8022
D160: ENJ-00132P8026
D161: ENJ-00750P8020
D162: ENJ-00751P8025
D163: ENJ-00808P8019
D164: ENJ-00809P8024
D165: F52-02136P7343
D166: F52-02137P7344
D167: F52-02655P7333
D168: 3396e762-af96-42f1-bea4-5c97a1efa94fP7422
D169: 1e8bbd2f-ad7e-4105-b140-66f475458bb8P7424
D170: FQC-09478P9225
D171: FQC-09543P9226
D172: FTH-00006P8316
D173: G3S-00505P9249
D174: G3S-00506P9250
D175: GLX-00002P8052
D176: GMG-00004P7642
D177: GMK-00004P7646
D178: GMP-00004P7650
D179: GMS-00007P7751
D180: GMS-00008P7753
D181: GMS-00020P7752
D182: GMS-00021P7754
D183: GMV-00012P7777
D184: GMV-00013P7778
D185: GMY-00007P7734
D186: GMY-00008P7735
D187: GMY-00014P7736
D188: GMY-00019P7737
D189: GMY-00024P7738
D190: GNJ-00007P7798
D191: GNJ-00008P7799
D192: GNQ-00004P7818
D193: GNT-00007P7866
D194: GNT-00008P7867
D195: GNT-00011P7868
D196: GNT-00015P7869
D197: GNT-00020P7870
D198: GNW-00009P7831
D199: GNW-00010P7832
D200: GNZ-00012P7854
... 504 more rows

Sheet minimo (hidden)
C3: Etiquetas de fila | D3: Suma de total
C4: Dell Colombia INC | D4: 10785.6
C5: UT Soluciones Microsoft 2017 | D5: 11038.8
C6: The Best Experience in Technology S.A | D6: 11580
C7: Controles Empresariales S.A.S. | D7: 11696.4
C8: UT Soft-IG | D8: 11847.6
C9: Total general | D9: 56948.4

Sheet temp (hidden)
A1: LLAVE | B1: TEMP1 | C1: TEMP2 | D1: PROVEEDOR | E1: Código matriz Colombia Compra Eficiente | F1: categoria | G1: Familia | H1: Familia CCE | I1: Parametrización de los Servicios | J1: Nombre Producto | K1: Unidad de Medida | L1: Unidad TVEC | M1: Tipo | N1: Zona | O1: Asistencia | P1: Perfil | Q1: Número de parte | R1: Forma de Pago | S1: Precio | T1: Activo | U1: IVA | V1: cant | W1: valor base | X1: valor con gravamenes | Y1: total
A2: Dell Colombia INCCategoría 2796b6b5f-613c-4e24-a17c-eba730d49c02 | B2: 796b6b5f-613c-4e24-a17c-eba730d49c02Categoría 2 | D2: Dell Colombia INC | E2: 796b6b5f-613c-4e24-a17c-eba730d49c02 | F2: 2 | G2: Office 365 | H2: Office 365 | I2: N/A | J2: Office 365 E3 | K2: Unidad | L2: Und | M2: Producto | N2: N/A | O2: N/A | P2: N/A | Q2: 796b6b5f-613c-4e24-a17c-eba730d49c02 | R2: Suscripción mensual con pago anual | S2: 17.9574 | T2: 1 | U2: 0 | V2: =SUMIF(ResumenCotizacion!$C:$C,E2,ResumenCotizacion!$P:$P) -> 180 | W2: =S2 -> 17.9574 | X2: =ROUND(W2/(1-VLOOKUP("Total porcentaje:",ResumenCotizacion!$F:$H,3,0)),2) -> 17.96 | Y2: =V2*X2 -> 3232.8
A3: UT Soluciones Microsoft 2017Categoría 2796b6b5f-613c-4e24-a17c-eba730d49c02 | B3: 796b6b5f-613c-4e24-a17c-eba730d49c02Categoría 2 | D3: UT Soluciones Microsoft 2017 | E3: 796b6b5f-613c-4e24-a17c-eba730d49c02 | F3: 2 | G3: Office 365 | H3: Office 365 | I3: N/A | J3: Office 365 E3 | K3: Unidad | L3: Und | M3: Producto | N3: N/A | O3: N/A | P3: N/A | Q3: 796b6b5f-613c-4e24-a17c-eba730d49c02 | R3: Suscripción mensual con pago anual | S3: 21.6 | T3: 1 | U3: 0 | V3: =SUMIF(ResumenCotizacion!$C:$C,E3,ResumenCotizacion!$P:$P) -> 180 | W3: =S3 -> 21.6 | X3: =ROUND(W3/(1-VLOOKUP("Total porcentaje:",ResumenCotizacion!$F:$H,3,0)),2) -> 21.6 | Y3: =V3*X3 -> 3888
A4: UT Soft-IGCategoría 2796b6b5f-613c-4e24-a17c-eba730d49c02 | B4: 796b6b5f-613c-4e24-a17c-eba730d49c02Categoría 2 | D4: UT Soft-IG | E4: 796b6b5f-613c-4e24-a17c-eba730d49c02 | F4: 2 | G4: Office 365 | H4: Office 365 | I4: N/A | J4: Office 365 E3 | K4: Unidad | L4: Und | M4: Producto | N4: N/A | O4: N/A | P4: N/A | Q4: 796b6b5f-613c-4e24-a17c-eba730d49c02 | R4: Suscripción mensual con pago anual | S4: 20.46 | T4: 1 | U4: 0 | V4: =SUMIF(ResumenCotizacion!$C:$C,E4,ResumenCotizacion!$P:$P) -> 180 | W4: 20.46 | X4: =ROUND(W4/(1-VLOOKUP("Total porcentaje:",ResumenCotizacion!$F:$H,3,0)),2) -> 20.46 | Y4: 3682.8
A5: The Best Experience in Technology S.ACategoría 2796b6b5f-613c-4e24-a17c-eba730d49c02 | B5: 796b6b5f-613c-4e24-a17c-eba730d49c02Categoría 2 | D5: The Best Experience in Technology S.A | E5: 796b6b5f-613c-4e24-a17c-eba730d49c02 | F5: 2 | G5: Office 365 | H5: Office 365 | I5: N/A | J5: Office 365 E3 | K5: Unidad | L5: Und | M5: Producto | N5: N/A | O5: N/A | P5: N/A | Q5: 796b6b5f-613c-4e24-a17c-eba730d49c02 | R5: Suscripción mensual con pago anual | S5: 20 | T5: 1 | U5: 0 | V5: =SUMIF(ResumenCotizacion!$C:$C,E5,ResumenCotizacion!$P:$P) -> 180 | W5: 20 | X5: =ROUND(W5/(1-VLOOKUP("Total porcentaje:",ResumenCotizacion!$F:$H,3,0)),2) -> 20 | Y5: 3600
A6: Controles Empresariales S.A.S.Categoría 2796b6b5f-613c-4e24-a17c-eba730d49c02 | B6: 796b6b5f-613c-4e24-a17c-eba730d49c02Categoría 2 | D6: Controles Empresariales S.A.S. | E6: 796b6b5f-613c-4e24-a17c-eba730d49c02 | F6: 2 | G6: Office 365 | H6: Office 365 | I6: N/A | J6: Office 365 E3 | K6: Unidad | L6: Und | M6: Producto | N6: N/A | O6: N/A | P6: N/A | Q6: 796b6b5f-613c-4e24-a17c-eba730d49c02 | R6: Suscripción mensual con pago anual | S6: 19.584 | T6: 1 | U6: 0 | V6: =SUMIF(ResumenCotizacion!$C:$C,E6,ResumenCotizacion!$P:$P) -> 180 | W6: 19.584 | X6: =ROUND(W6/(1-VLOOKUP("Total porcentaje:",ResumenCotizacion!$F:$H,3,0)),2) -> 19.58 | Y6: 3524.4
A7: Controles Empresariales S.A.S.Categoría 2195416c1-3447-423a-b37b-ee59a99a19c4 | B7: 195416c1-3447-423a-b37b-ee59a99a19c4Categoría 2 | D7: Controles Empresariales S.A.S. | E7: 195416c1-3447-423a-b37b-ee59a99a19c4 | F7: 2 | G7: Exchange Online | H7: Exchange Online | I7: N/A | J7: Exchange Online (Plan 1) | K7: Unidad | L7: Und | M7: Producto | N7: N/A | O7: N/A | P7: N/A | Q7: 195416c1-3447-423a-b37b-ee59a99a19c4 | R7: Suscripción mensual con pago anual | S7: 4.1 | T7: 1 | U7: 0 | V7: =SUMIF(ResumenCotizacion!$C:$C,E7,ResumenCotizacion!$P:$P) -> 120 | W7: 4.1 | X7: =ROUND(W7/(1-VLOOKUP("Total porcentaje:",ResumenCotizacion!$F:$H,3,0)),2) -> 4.1 | Y7: 492
A8: Controles Empresariales S.A.S.Categoría 2031c9e47-4802-4248-838e-778fb1d2cc05 | B8: 031c9e47-4802-4248-838e-778fb1d2cc05Categoría 2 | D8: Controles Empresariales S.A.S. | E8: 031c9e47-4802-4248-838e-778fb1d2cc05 | F8: 2 | G8: Office 365 Business | H8: Office 365 Business | I8: N/A | J8: Office 365 Business Premium | K8: Unidad | L8: Und | M8: Producto | N8: N/A | O8: N/A | P8: N/A | Q8: 031c9e47-4802-4248-838e-778fb1d2cc05 | R8: Suscripción mensual con pago anual | S8: 12.8 | T8: 1 | U8: 0 | V8: =SUMIF(ResumenCotizacion!$C:$C,E8,ResumenCotizacion!$P:$P) -> 600 | W8: 12.8 | X8: =ROUND(W8/(1-VLOOKUP("Total porcentaje:",ResumenCotizacion!$F:$H,3,0)),2) -> 12.8 | Y8: 7680
A9: The Best Experience in Technology S.ACategoría 2195416c1-3447-423a-b37b-ee59a99a19c4 | B9: 195416c1-3447-423a-b37b-ee59a99a19c4Categoría 2 | D9: The Best Experience in Technology S.A | E9: 195416c1-3447-423a-b37b-ee59a99a19c4 | F9: 2 | G9: Exchange Online | H9: Exchange Online | I9: N/A | J9: Exchange Online (Plan 1) | K9: Unidad | L9: Und | M9: Producto | N9: N/A | O9: N/A | P9: N/A | Q9: 195416c1-3447-423a-b37b-ee59a99a19c4 | R9: Suscripción mensual con pago anual | S9: 4 | T9: 1 | U9: 0 | V9: =SUMIF(ResumenCotizacion!$C:$C,E9,ResumenCotizacion!$P:$P) -> 120 | W9: 4 | X9: =ROUND(W9/(1-VLOOKUP("Total porcentaje:",ResumenCotizacion!$F:$H,3,0)),2) -> 4 | Y9: 480
A10: The Best Experience in Technology S.ACategoría 2031c9e47-4802-4248-838e-778fb1d2cc05 | B10: 031c9e47-4802-4248-838e-778fb1d2cc05Categoría 2 | D10: The Best Experience in Technology S.A | E10: 031c9e47-4802-4248-838e-778fb1d2cc05 | F10: 2 | G10: Office 365 Business | H10: Office 365 Business | I10: N/A | J10: Office 365 Business Premium | K10: Unidad | L10: Und | M10: Producto | N10: N/A | O10: N/A | P10: N/A | Q10: 031c9e47-4802-4248-838e-778fb1d2cc05 | R10: Suscripción mensual con pago anual | S10: 12.5 | T10: 1 | U10: 0 | V10: =SUMIF(ResumenCotizacion!$C:$C,E10,ResumenCotizacion!$P:$P) -> 600 | W10: 12.5 | X10: =ROUND(W10/(1-VLOOKUP("Total porcentaje:",ResumenCotizacion!$F:$H,3,0)),2) -> 12.5 | Y10: 7500
A11: Dell Colombia INCCategoría 2195416c1-3447-423a-b37b-ee59a99a19c4 | B11: 195416c1-3447-423a-b37b-ee59a99a19c4Categoría 2 | D11: Dell Colombia INC | E11: 195416c1-3447-423a-b37b-ee59a99a19c4 | F11: 2 | G11: Exchange Online | H11: Exchange Online | I11: N/A | J11: Exchange Online (Plan 1) | K11: Unidad | L11: Und | M11: Producto | N11: N/A | O11: N/A | P11: N/A | Q11: 195416c1-3447-423a-b37b-ee59a99a19c4 | R11: Suscripción mensual con pago anual | S11: 3.7865 | T11: 1 | U11: 0 | V11: =SUMIF(ResumenCotizacion!$C:$C,E11,ResumenCotizacion!$P:$P) -> 120 | W11: 3.7865 | X11: =ROUND(W11/(1-VLOOKUP("Total porcentaje:",ResumenCotizacion!$F:$H,3,0)),2) -> 3.79 | Y11: 454.8
A12: Dell Colombia INCCategoría 2031c9e47-4802-4248-838e-778fb1d2cc05 | B12: 031c9e47-4802-4248-838e-778fb1d2cc05Categoría 2 | D12: Dell Colombia INC | E12: 031c9e47-4802-4248-838e-778fb1d2cc05 | F12: 2 | G12: Office 365 Business | H12: Office 365 Business | I12: N/A | J12: Office 365 Business Premium | K12: Unidad | L12: Und | M12: Producto | N12: N/A | O12: N/A | P12: N/A | Q12: 031c9e47-4802-4248-838e-778fb1d2cc05 | R12: Suscripción mensual con pago anual | S12: 11.8329 | T12: 1 | U12: 0 | V12: =SUMIF(ResumenCotizacion!$C:$C,E12,ResumenCotizacion!$P:$P) -> 600 | W12: 11.8329 | X12: =ROUND(W12/(1-VLOOKUP("Total porcentaje:",ResumenCotizacion!$F:$H,3,0)),2) -> 11.83 | Y12: 7098
A13: UT Soluciones Microsoft 2017Categoría 2195416c1-3447-423a-b37b-ee59a99a19c4 | B13: 195416c1-3447-423a-b37b-ee59a99a19c4Categoría 2 | D13: UT Soluciones Microsoft 2017 | E13: 195416c1-3447-423a-b37b-ee59a99a19c4 | F13: 2 | G13: Exchange Online | H13: Exchange Online | I13: N/A | J13: Exchange Online (Plan 1) | K13: Unidad | L13: Und | M13: Producto | N13: N/A | O13: N/A | P13: N/A | Q13: 195416c1-3447-423a-b37b-ee59a99a19c4 | R13: Suscripción mensual con pago anual | S13: 3.59 | T13: 1 | U13: 0 | V13: =SUMIF(ResumenCotizacion!$C:$C,E13,ResumenCotizacion!$P:$P) -> 120 | W13: 3.59 | X13: =ROUND(W13/(1-VLOOKUP("Total porcentaje:",ResumenCotizacion!$F:$H,3,0)),2) -> 3.59 | Y13: 430.8
A14: UT Soluciones Microsoft 2017Categoría 2031c9e47-4802-4248-838e-778fb1d2cc05 | B14: 031c9e47-4802-4248-838e-778fb1d2cc05Categoría 2 | D14: UT Soluciones Microsoft 2017 | E14: 031c9e47-4802-4248-838e-778fb1d2cc05 | F14: 2 | G14: Office 365 Business | H14: Office 365 Business | I14: N/A | J14: Office 365 Business Premium | K14: Unidad | L14: Und | M14: Producto | N14: N/A | O14: N/A | P14: N/A | Q14: 031c9e47-4802-4248-838e-778fb1d2cc05 | R14: Suscripción mensual con pago anual | S14: 11.2 | T14: 1 | U14: 0 | V14: =SUMIF(ResumenCotizacion!$C:$C,E14,ResumenCotizacion!$P:$P) -> 600 | W14: 11.2 | X14: =ROUND(W14/(1-VLOOKUP("Total porcentaje:",ResumenCotizacion!$F:$H,3,0)),2) -> 11.2 | Y14: 6720
A15: UT Soft-IGCategoría 2195416c1-3447-423a-b37b-ee59a99a19c4 | B15: 195416c1-3447-423a-b37b-ee59a99a19c4Categoría 2 | D15: UT Soft-IG | E15: 195416c1-3447-423a-b37b-ee59a99a19c4 | F15: 2 | G15: Exchange Online | H15: Exchange Online | I15: N/A | J15: Exchange Online (Plan 1) | K15: Unidad | L15: Und | M15: Producto | N15: N/A | O15: N/A | P15: N/A | Q15: 195416c1-3447-423a-b37b-ee59a99a19c4 | R15: Suscripción mensual con pago anual | S15: 4.09 | T15: 1 | U15: 0 | V15: =SUMIF(ResumenCotizacion!$C:$C,E15,ResumenCotizacion!$P:$P) -> 120 | W15: 4.09 | X15: =ROUND(W15/(1-VLOOKUP("Total porcentaje:",ResumenCotizacion!$F:$H,3,0)),2) -> 4.09 | Y15: 490.8
A16: UT Soft-IGCategoría 2031c9e47-4802-4248-838e-778fb1d2cc05 | B16: 031c9e47-4802-4248-838e-778fb1d2cc05Categoría 2 | D16: UT Soft-IG | E16: 031c9e47-4802-4248-838e-778fb1d2cc05 | F16: 2 | G16: Office 365 Business | H16: Office 365 Business | I16: N/A | J16: Office 365 Business Premium | K16: Unidad | L16: Und | M16: Producto | N16: N/A | O16: N/A | P16: N/A | Q16: 031c9e47-4802-4248-838e-778fb1d2cc05 | R16: Suscripción mensual con pago anual | S16: 12.79 | T16: 1 | U16: 0 | V16: =SUMIF(ResumenCotizacion!$C:$C,E16,ResumenCotizacion!$P:$P) -> 600 | W16: 12.79 | X16: =ROUND(W16/(1-VLOOKUP("Total porcentaje:",ResumenCotizacion!$F:$H,3,0)),2) -> 12.79 | Y16: 7674

Sheet tempListas (hidden)
A1: PROVEEDOR
A2: Controles Empresariales S.A.S.
A3: Dell Colombia INC
A4: The Best Experience in Technology S.A
A5: UT Soft-IG
A6: UT Soluciones Microsoft 2017
